Workbook

Sheet Master Data
A1: All Staff IT Calculator 2024-25 By Ashwini Kumar Excel
A2: Office Name - www.ashwinisharma.com
A4: Sr.No. | B4: Employee Name | C4: Post | D4: PAN No. | E4: Basic March 24 | F4: HRA % | G4: Bonus Month | H4: DA Arrear | I4: Surrender Month | J4: CCA Amount | K4: Washing All. Amount | L4: Handi.All. Ammout | M4: Oth. All. 1 | N4: Oth.All. 2 | O4: Oth.Income | P4: Bank interest Amount | Q4: FD & other interest
B5: 2 | C5: 3 | D5: 4 | E5: 5 | F5: 6 | G5: 7 | H5: 8 | I5: 9 | J5: 10 | K5: 11 | L5: 12 | M5: 13 | N5: 14 | O5: 15 | P5: 16 | Q5: 17
A6: =IF(B6="","",ROW()-5) -> 1 | B6: Ashwini Kumar 1 | C6: Lecturer | D6: AAAAA5921A | E6: ₹51,400.00 | F6: 10% | G6: 12 | H6: Yes | I6: 2024-03-01 | AP6: 1 | AQ6: 2024-03-01
A7: =IF(B7="","",ROW()-5) -> 2 | B7: Arun Kumar | C7: Teacher | D7: AAAAA5922A | E7: ₹49,900.00 | F7: 20% | G7: 10 | H7: No | I7: 2024-03-01 | AP7: 2 | AQ7: 2024-04-01
A8: 3 | B8: Dhirendra Kumar | C8: Lecturer | D8: AAAAA5923A | E8: ₹52,900.00 | F8: 10% | G8: 12 | H8: Yes | I8: 2024-12-01 | AP8: 3 | AQ8: 2024-05-01
A9: 4 | B9: Ashwini Kumar 4 | AP9: 4 | AQ9: 2024-06-01
A10: 5 | B10: Ashwini Kumar 5 | AP10: 5 | AQ10: 2024-07-01
A11: 6 | B11: Ashwini Kumar 6 | AP11: 6 | AQ11: 2024-08-01
A12: 7 | B12: Ashwini Kumar 7 | AP12: 7 | AQ12: 2024-09-01
A13: 8 | B13: Ashwini Kumar 8 | AP13: 8 | AQ13: 2024-10-01
A14: 9 | B14: Ashwini Kumar 9 | AP14: 9 | AQ14: 2024-11-01
A15: 10 | B15: Ashwini Kumar 10 | AP15: 10 | AQ15: 2024-12-01
A16: 11 | B16: Ashwini Kumar 11 | AP16: 11 | AQ16: 2025-01-01
A17: 12 | B17: Ashwini Kumar 12 | AP17: 12 | AQ17: 2025-02-01
A18: 13 | B18: Ashwini Kumar 13
A19: 14 | B19: Ashwini Kumar 14
A20: 15 | B20: Ashwini Kumar 15
A21: 16 | B21: Ashwini Kumar 16
A22: 17 | B22: Ashwini Kumar 17
A23: 18 | B23: Ashwini Kumar 18
A24: 19 | B24: Ashwini Kumar 19
A25: 20 | B25: Ashwini Kumar 20
A26: 21 | B26: Ashwini Kumar 21
A27: 22 | B27: Ashwini Kumar 22
A28: 23 | B28: Ashwini Kumar 23
A29: 24 | B29: Ashwini Kumar 24
A30: 25 | B30: Ashwini Kumar 25
A31: 26 | B31: Ashwini Kumar 26
A32: 27 | B32: Ashwini Kumar 27
A33: 28 | B33: Ashwini Kumar 28
A34: 29 | B34: Ashwini Kumar 29
A35: 30 | B35: Ashwini Kumar 30
A36: 31 | B36: Ashwini Kumar 31
A37: 32 | B37: Ashwini Kumar 32
A38: 33 | B38: Ashwini Kumar 33
A39: 34 | B39: Ashwini Kumar 34
A40: 35 | B40: Ashwini Kumar 35
A41: 36 | B41: Ashwini Kumar 36
A42: 37 | B42: Ashwini Kumar 37
A43: 38 | B43: Ashwini Kumar 38
A44: 39 | B44: Ashwini Kumar 39
A45: 40 | B45: Ashwini Kumar 40
A46: 41 | B46: Ashwini Kumar 41
A47: 42 | B47: Ashwini Kumar 42
A48: 43 | B48: Ashwini Kumar 43
A49: 44 | B49: Ashwini Kumar 44
A50: 45 | B50: Ashwini Kumar 45
A51: 46 | B51: Ashwini Kumar 46
A52: 47 | B52: Ashwini Kumar 47
A53: 48 | B53: Ashwini Kumar 48
A54: 49 | B54: Ashwini Kumar 49
A55: 50 | B55: Ashwini Kumar 50
A56: 51 | B56: Ashwini Kumar 51
A57: 52 | B57: Ashwini Kumar 52
A58: 53 | B58: Ashwini Kumar 53
A59: 54 | B59: Ashwini Kumar 54
A60: 55 | B60: Ashwini Kumar 55
A61: 56 | B61: Ashwini Kumar 56
A62: 57 | B62: Ashwini Kumar 57
A63: 58 | B63: Ashwini Kumar 58
A64: 59 | B64: Ashwini Kumar 59
A65: 60 | B65: Ashwini Kumar 60
A66: 61 | B66: Ashwini Kumar 61
A67: 62 | B67: Ashwini Kumar 62
A68: 63 | B68: Ashwini Kumar 63
A69: 64 | B69: Ashwini Kumar 64
A70: 65 | B70: Ashwini Kumar 65
A71: =IF(B71="","",ROW()-5) -> 66 | B71: Ashwini Kumar 66
A72: 67 | B72: Ashwini Kumar 67
A73: 68 | B73: Ashwini Kumar 68
A74: 69 | B74: Ashwini Kumar 69
A75: 70 | B75: Ashwini Kumar 70
A76: 71 | B76: Ashwini Kumar 71
A77: 72 | B77: Ashwini Kumar 72
A78: 73 | B78: Ashwini Kumar 73
A79: 74 | B79: Ashwini Kumar 74
A80: 75 | B80: Ashwini Kumar 75
A81: 76 | B81: Ashwini Kumar 76
A82: 77 | B82: Ashwini Kumar 77
A83: 78 | B83: Ashwini Kumar 78
A84: 79 | B84: Ashwini Kumar 79
A85: 80 | B85: Ashwini Kumar 80
A86: 81 | B86: Ashwini Kumar 81
A87: 82 | B87: Ashwini Kumar 82
A88: 83 | B88: Ashwini Kumar 83
A89: 84 | B89: Ashwini Kumar 84
A90: 85 | B90: Ashwini Kumar 85
A91: 86 | B91: Ashwini Kumar 86
A92: 87 | B92: Ashwini Kumar 87
A93: 88 | B93: Ashwini Kumar 88
A94: 89 | B94: Ashwini Kumar 89
A95: 90 | B95: Ashwini Kumar 90
A96: 91 | B96: Ashwini Kumar 91
A97: 92 | B97: Ashwini Kumar 92
A98: 93 | B98: Ashwini Kumar 93
A99: 94 | B99: Ashwini Kumar 94
A100: 95 | B100: Ashwini Kumar 95
A101: 96 | B101: Ashwini Kumar 96
A102: 97 | B102: Ashwini Kumar 97
A103: 98 | B103: Ashwini Kumar 98
A104: 99 | B104: Ashwini Kumar 99
A105: 100 | B105: Ashwini Kumar 100

Sheet Deductions1
A1: All Staff IT Calculator 2024-25 By Ashwini Kumar Excel
A2: ='Master Data'!A2 -> Office Name - www.ashwinisharma.com
A3: Sr.No. | B3: Employee Name | C3: SI | D3: GPF/ GPF2004 (other than Slab) | E3: GIS | F3: Hitkari Nidhi | G3: LIC from Salary | H3: Other Ded1 | I3: Other Ded2 | J3: Tax Deduction
J4: 2024-03-01 | K4: 2024-04-01 | L4: 2024-05-01 | M4: 2024-06-01 | N4: 2024-07-01 | O4: 2024-08-01 | P4: 2024-09-01 | Q4: 2024-10-01 | R4: 2024-11-01 | S4: 2024-12-01 | T4: 2025-01-01 | U4: 2025-02-01
A5: =IF('Master Data'!A6="","",'Master Data'!A6) -> 1 | B5: =IF('Master Data'!B6="","",'Master Data'!B6) -> Ashwini Kumar 1 | C5: 3000 | E5: 700 | F5: 250 | AK5: 1 | AL5: 2024-03-01
A6: =IF('Master Data'!A7="","",'Master Data'!A7) -> 2 | B6: =IF('Master Data'!B7="","",'Master Data'!B7) -> Arun Kumar | C6: 5000 | D6: 8000 | E6: 1400 | F6: 500 | AK6: 2 | AL6: 2024-04-01
A7: =IF('Master Data'!A8="","",'Master Data'!A8) -> 3 | B7: =IF('Master Data'!B8="","",'Master Data'!B8) -> Dhirendra Kumar | C7: 7000 | E7: 2100 | AK7: 3 | AL7: 2024-05-01
A8: =IF('Master Data'!A9="","",'Master Data'!A9) -> 4 | B8: =IF('Master Data'!B9="","",'Master Data'!B9) -> Ashwini Kumar 4 | F8: 500 | AK8: 4 | AL8: 2024-06-01
A9: =IF('Master Data'!A10="","",'Master Data'!A10) -> 5 | B9: =IF('Master Data'!B10="","",'Master Data'!B10) -> Ashwini Kumar 5 | AK9: 5 | AL9: 2024-07-01
A10: =IF('Master Data'!A11="","",'Master Data'!A11) -> 6 | B10: =IF('Master Data'!B11="","",'Master Data'!B11) -> Ashwini Kumar 6 | AK10: 6 | AL10: 2024-08-01
A11: =IF('Master Data'!A12="","",'Master Data'!A12) -> 7 | B11: =IF('Master Data'!B12="","",'Master Data'!B12) -> Ashwini Kumar 7 | AK11: 7 | AL11: 2024-09-01
A12: =IF('Master Data'!A13="","",'Master Data'!A13) -> 8 | B12: =IF('Master Data'!B13="","",'Master Data'!B13) -> Ashwini Kumar 8 | AK12: 8 | AL12: 2024-10-01
A13: =IF('Master Data'!A14="","",'Master Data'!A14) -> 9 | B13: =IF('Master Data'!B14="","",'Master Data'!B14) -> Ashwini Kumar 9 | AK13: 9 | AL13: 2024-11-01
A14: =IF('Master Data'!A15="","",'Master Data'!A15) -> 10 | B14: =IF('Master Data'!B15="","",'Master Data'!B15) -> Ashwini Kumar 10 | AK14: 10 | AL14: 2024-12-01
A15: =IF('Master Data'!A16="","",'Master Data'!A16) -> 11 | B15: =IF('Master Data'!B16="","",'Master Data'!B16) -> Ashwini Kumar 11 | AK15: 11 | AL15: 2025-01-01
A16: =IF('Master Data'!A17="","",'Master Data'!A17) -> 12 | B16: =IF('Master Data'!B17="","",'Master Data'!B17) -> Ashwini Kumar 12 | AK16: 12 | AL16: 2025-02-01
A17: =IF('Master Data'!A18="","",'Master Data'!A18) -> 13 | B17: =IF('Master Data'!B18="","",'Master Data'!B18) -> Ashwini Kumar 13
A18: =IF('Master Data'!A19="","",'Master Data'!A19) -> 14 | B18: =IF('Master Data'!B19="","",'Master Data'!B19) -> Ashwini Kumar 14
A19: =IF('Master Data'!A20="","",'Master Data'!A20) -> 15 | B19: =IF('Master Data'!B20="","",'Master Data'!B20) -> Ashwini Kumar 15
A20: =IF('Master Data'!A21="","",'Master Data'!A21) -> 16 | B20: =IF('Master Data'!B21="","",'Master Data'!B21) -> Ashwini Kumar 16
A21: =IF('Master Data'!A22="","",'Master Data'!A22) -> 17 | B21: =IF('Master Data'!B22="","",'Master Data'!B22) -> Ashwini Kumar 17
A22: =IF('Master Data'!A23="","",'Master Data'!A23) -> 18 | B22: =IF('Master Data'!B23="","",'Master Data'!B23) -> Ashwini Kumar 18
A23: =IF('Master Data'!A24="","",'Master Data'!A24) -> 19 | B23: =IF('Master Data'!B24="","",'Master Data'!B24) -> Ashwini Kumar 19
A24: =IF('Master Data'!A25="","",'Master Data'!A25) -> 20 | B24: =IF('Master Data'!B25="","",'Master Data'!B25) -> Ashwini Kumar 20
A25: =IF('Master Data'!A26="","",'Master Data'!A26) -> 21 | B25: =IF('Master Data'!B26="","",'Master Data'!B26) -> Ashwini Kumar 21
A26: =IF('Master Data'!A27="","",'Master Data'!A27) -> 22 | B26: =IF('Master Data'!B27="","",'Master Data'!B27) -> Ashwini Kumar 22
A27: =IF('Master Data'!A28="","",'Master Data'!A28) -> 23 | B27: =IF('Master Data'!B28="","",'Master Data'!B28) -> Ashwini Kumar 23
A28: =IF('Master Data'!A29="","",'Master Data'!A29) -> 24 | B28: =IF('Master Data'!B29="","",'Master Data'!B29) -> Ashwini Kumar 24
A29: =IF('Master Data'!A30="","",'Master Data'!A30) -> 25 | B29: =IF('Master Data'!B30="","",'Master Data'!B30) -> Ashwini Kumar 25
A30: =IF('Master Data'!A31="","",'Master Data'!A31) -> 26 | B30: =IF('Master Data'!B31="","",'Master Data'!B31) -> Ashwini Kumar 26
A31: =IF('Master Data'!A32="","",'Master Data'!A32) -> 27 | B31: =IF('Master Data'!B32="","",'Master Data'!B32) -> Ashwini Kumar 27
A32: =IF('Master Data'!A33="","",'Master Data'!A33) -> 28 | B32: =IF('Master Data'!B33="","",'Master Data'!B33) -> Ashwini Kumar 28
A33: =IF('Master Data'!A34="","",'Master Data'!A34) -> 29 | B33: =IF('Master Data'!B34="","",'Master Data'!B34) -> Ashwini Kumar 29
A34: =IF('Master Data'!A35="","",'Master Data'!A35) -> 30 | B34: =IF('Master Data'!B35="","",'Master Data'!B35) -> Ashwini Kumar 30
A35: =IF('Master Data'!A36="","",'Master Data'!A36) -> 31 | B35: =IF('Master Data'!B36="","",'Master Data'!B36) -> Ashwini Kumar 31
A36: =IF('Master Data'!A37="","",'Master Data'!A37) -> 32 | B36: =IF('Master Data'!B37="","",'Master Data'!B37) -> Ashwini Kumar 32
A37: =IF('Master Data'!A38="","",'Master Data'!A38) -> 33 | B37: =IF('Master Data'!B38="","",'Master Data'!B38) -> Ashwini Kumar 33
A38: =IF('Master Data'!A39="","",'Master Data'!A39) -> 34 | B38: =IF('Master Data'!B39="","",'Master Data'!B39) -> Ashwini Kumar 34
A39: =IF('Master Data'!A40="","",'Master Data'!A40) -> 35 | B39: =IF('Master Data'!B40="","",'Master Data'!B40) -> Ashwini Kumar 35
A40: =IF('Master Data'!A41="","",'Master Data'!A41) -> 36 | B40: =IF('Master Data'!B41="","",'Master Data'!B41) -> Ashwini Kumar 36
A41: =IF('Master Data'!A42="","",'Master Data'!A42) -> 37 | B41: =IF('Master Data'!B42="","",'Master Data'!B42) -> Ashwini Kumar 37
A42: =IF('Master Data'!A43="","",'Master Data'!A43) -> 38 | B42: =IF('Master Data'!B43="","",'Master Data'!B43) -> Ashwini Kumar 38
A43: =IF('Master Data'!A44="","",'Master Data'!A44) -> 39 | B43: =IF('Master Data'!B44="","",'Master Data'!B44) -> Ashwini Kumar 39
A44: =IF('Master Data'!A45="","",'Master Data'!A45) -> 40 | B44: =IF('Master Data'!B45="","",'Master Data'!B45) -> Ashwini Kumar 40
A45: =IF('Master Data'!A46="","",'Master Data'!A46) -> 41 | B45: =IF('Master Data'!B46="","",'Master Data'!B46) -> Ashwini Kumar 41
A46: =IF('Master Data'!A47="","",'Master Data'!A47) -> 42 | B46: =IF('Master Data'!B47="","",'Master Data'!B47) -> Ashwini Kumar 42
A47: =IF('Master Data'!A48="","",'Master Data'!A48) -> 43 | B47: =IF('Master Data'!B48="","",'Master Data'!B48) -> Ashwini Kumar 43
A48: =IF('Master Data'!A49="","",'Master Data'!A49) -> 44 | B48: =IF('Master Data'!B49="","",'Master Data'!B49) -> Ashwini Kumar 44
A49: =IF('Master Data'!A50="","",'Master Data'!A50) -> 45 | B49: =IF('Master Data'!B50="","",'Master Data'!B50) -> Ashwini Kumar 45
A50: =IF('Master Data'!A51="","",'Master Data'!A51) -> 46 | B50: =IF('Master Data'!B51="","",'Master Data'!B51) -> Ashwini Kumar 46
A51: =IF('Master Data'!A52="","",'Master Data'!A52) -> 47 | B51: =IF('Master Data'!B52="","",'Master Data'!B52) -> Ashwini Kumar 47
A52: =IF('Master Data'!A53="","",'Master Data'!A53) -> 48 | B52: =IF('Master Data'!B53="","",'Master Data'!B53) -> Ashwini Kumar 48
A53: =IF('Master Data'!A54="","",'Master Data'!A54) -> 49 | B53: =IF('Master Data'!B54="","",'Master Data'!B54) -> Ashwini Kumar 49
A54: =IF('Master Data'!A55="","",'Master Data'!A55) -> 50 | B54: =IF('Master Data'!B55="","",'Master Data'!B55) -> Ashwini Kumar 50
A55: =IF('Master Data'!A56="","",'Master Data'!A56) -> 51 | B55: =IF('Master Data'!B56="","",'Master Data'!B56) -> Ashwini Kumar 51
A56: =IF('Master Data'!A57="","",'Master Data'!A57) -> 52 | B56: =IF('Master Data'!B57="","",'Master Data'!B57) -> Ashwini Kumar 52
A57: =IF('Master Data'!A58="","",'Master Data'!A58) -> 53 | B57: =IF('Master Data'!B58="","",'Master Data'!B58) -> Ashwini Kumar 53
A58: =IF('Master Data'!A59="","",'Master Data'!A59) -> 54 | B58: =IF('Master Data'!B59="","",'Master Data'!B59) -> Ashwini Kumar 54
A59: =IF('Master Data'!A60="","",'Master Data'!A60) -> 55 | B59: =IF('Master Data'!B60="","",'Master Data'!B60) -> Ashwini Kumar 55
A60: =IF('Master Data'!A61="","",'Master Data'!A61) -> 56 | B60: =IF('Master Data'!B61="","",'Master Data'!B61) -> Ashwini Kumar 56
A61: =IF('Master Data'!A62="","",'Master Data'!A62) -> 57 | B61: =IF('Master Data'!B62="","",'Master Data'!B62) -> Ashwini Kumar 57
A62: =IF('Master Data'!A63="","",'Master Data'!A63) -> 58 | B62: =IF('Master Data'!B63="","",'Master Data'!B63) -> Ashwini Kumar 58
A63: =IF('Master Data'!A64="","",'Master Data'!A64) -> 59 | B63: =IF('Master Data'!B64="","",'Master Data'!B64) -> Ashwini Kumar 59
A64: =IF('Master Data'!A65="","",'Master Data'!A65) -> 60 | B64: =IF('Master Data'!B65="","",'Master Data'!B65) -> Ashwini Kumar 60
A65: =IF('Master Data'!A66="","",'Master Data'!A66) -> 61 | B65: =IF('Master Data'!B66="","",'Master Data'!B66) -> Ashwini Kumar 61
A66: =IF('Master Data'!A67="","",'Master Data'!A67) -> 62 | B66: =IF('Master Data'!B67="","",'Master Data'!B67) -> Ashwini Kumar 62
A67: =IF('Master Data'!A68="","",'Master Data'!A68) -> 63 | B67: =IF('Master Data'!B68="","",'Master Data'!B68) -> Ashwini Kumar 63
A68: =IF('Master Data'!A69="","",'Master Data'!A69) -> 64 | B68: =IF('Master Data'!B69="","",'Master Data'!B69) -> Ashwini Kumar 64
A69: =IF('Master Data'!A70="","",'Master Data'!A70) -> 65 | B69: =IF('Master Data'!B70="","",'Master Data'!B70) -> Ashwini Kumar 65
A70: =IF('Master Data'!A71="","",'Master Data'!A71) -> 66 | B70: =IF('Master Data'!B71="","",'Master Data'!B71) -> Ashwini Kumar 66
A71: =IF('Master Data'!A72="","",'Master Data'!A72) -> 67 | B71: =IF('Master Data'!B72="","",'Master Data'!B72) -> Ashwini Kumar 67
A72: =IF('Master Data'!A73="","",'Master Data'!A73) -> 68 | B72: =IF('Master Data'!B73="","",'Master Data'!B73) -> Ashwini Kumar 68
A73: =IF('Master Data'!A74="","",'Master Data'!A74) -> 69 | B73: =IF('Master Data'!B74="","",'Master Data'!B74) -> Ashwini Kumar 69
A74: =IF('Master Data'!A75="","",'Master Data'!A75) -> 70 | B74: =IF('Master Data'!B75="","",'Master Data'!B75) -> Ashwini Kumar 70
A75: =IF('Master Data'!A76="","",'Master Data'!A76) -> 71 | B75: =IF('Master Data'!B76="","",'Master Data'!B76) -> Ashwini Kumar 71
A76: =IF('Master Data'!A77="","",'Master Data'!A77) -> 72 | B76: =IF('Master Data'!B77="","",'Master Data'!B77) -> Ashwini Kumar 72
A77: =IF('Master Data'!A78="","",'Master Data'!A78) -> 73 | B77: =IF('Master Data'!B78="","",'Master Data'!B78) -> Ashwini Kumar 73
A78: =IF('Master Data'!A79="","",'Master Data'!A79) -> 74 | B78: =IF('Master Data'!B79="","",'Master Data'!B79) -> Ashwini Kumar 74
A79: =IF('Master Data'!A80="","",'Master Data'!A80) -> 75 | B79: =IF('Master Data'!B80="","",'Master Data'!B80) -> Ashwini Kumar 75
A80: =IF('Master Data'!A81="","",'Master Data'!A81) -> 76 | B80: =IF('Master Data'!B81="","",'Master Data'!B81) -> Ashwini Kumar 76
A81: =IF('Master Data'!A82="","",'Master Data'!A82) -> 77 | B81: =IF('Master Data'!B82="","",'Master Data'!B82) -> Ashwini Kumar 77
A82: =IF('Master Data'!A83="","",'Master Data'!A83) -> 78 | B82: =IF('Master Data'!B83="","",'Master Data'!B83) -> Ashwini Kumar 78
A83: =IF('Master Data'!A84="","",'Master Data'!A84) -> 79 | B83: =IF('Master Data'!B84="","",'Master Data'!B84) -> Ashwini Kumar 79
A84: =IF('Master Data'!A85="","",'Master Data'!A85) -> 80 | B84: =IF('Master Data'!B85="","",'Master Data'!B85) -> Ashwini Kumar 80
A85: =IF('Master Data'!A86="","",'Master Data'!A86) -> 81 | B85: =IF('Master Data'!B86="","",'Master Data'!B86) -> Ashwini Kumar 81
A86: =IF('Master Data'!A87="","",'Master Data'!A87) -> 82 | B86: =IF('Master Data'!B87="","",'Master Data'!B87) -> Ashwini Kumar 82
A87: =IF('Master Data'!A88="","",'Master Data'!A88) -> 83 | B87: =IF('Master Data'!B88="","",'Master Data'!B88) -> Ashwini Kumar 83
A88: =IF('Master Data'!A89="","",'Master Data'!A89) -> 84 | B88: =IF('Master Data'!B89="","",'Master Data'!B89) -> Ashwini Kumar 84
A89: =IF('Master Data'!A90="","",'Master Data'!A90) -> 85 | B89: =IF('Master Data'!B90="","",'Master Data'!B90) -> Ashwini Kumar 85
A90: =IF('Master Data'!A91="","",'Master Data'!A91) -> 86 | B90: =IF('Master Data'!B91="","",'Master Data'!B91) -> Ashwini Kumar 86
A91: =IF('Master Data'!A92="","",'Master Data'!A92) -> 87 | B91: =IF('Master Data'!B92="","",'Master Data'!B92) -> Ashwini Kumar 87
A92: =IF('Master Data'!A93="","",'Master Data'!A93) -> 88 | B92: =IF('Master Data'!B93="","",'Master Data'!B93) -> Ashwini Kumar 88
A93: =IF('Master Data'!A94="","",'Master Data'!A94) -> 89 | B93: =IF('Master Data'!B94="","",'Master Data'!B94) -> Ashwini Kumar 89
A94: =IF('Master Data'!A95="","",'Master Data'!A95) -> 90 | B94: =IF('Master Data'!B95="","",'Master Data'!B95) -> Ashwini Kumar 90
A95: =IF('Master Data'!A96="","",'Master Data'!A96) -> 91 | B95: =IF('Master Data'!B96="","",'Master Data'!B96) -> Ashwini Kumar 91
A96: =IF('Master Data'!A97="","",'Master Data'!A97) -> 92 | B96: =IF('Master Data'!B97="","",'Master Data'!B97) -> Ashwini Kumar 92
A97: =IF('Master Data'!A98="","",'Master Data'!A98) -> 93 | B97: =IF('Master Data'!B98="","",'Master Data'!B98) -> Ashwini Kumar 93
A98: =IF('Master Data'!A99="","",'Master Data'!A99) -> 94 | B98: =IF('Master Data'!B99="","",'Master Data'!B99) -> Ashwini Kumar 94
A99: =IF('Master Data'!A100="","",'Master Data'!A100) -> 95 | B99: =IF('Master Data'!B100="","",'Master Data'!B100) -> Ashwini Kumar 95
A100: =IF('Master Data'!A101="","",'Master Data'!A101) -> 96 | B100: =IF('Master Data'!B101="","",'Master Data'!B101) -> Ashwini Kumar 96
A101: =IF('Master Data'!A102="","",'Master Data'!A102) -> 97 | B101: =IF('Master Data'!B102="","",'Master Data'!B102) -> Ashwini Kumar 97
A102: =IF('Master Data'!A103="","",'Master Data'!A103) -> 98 | B102: =IF('Master Data'!B103="","",'Master Data'!B103) -> Ashwini Kumar 98
A103: =IF('Master Data'!A104="","",'Master Data'!A104) -> 99 | B103: =IF('Master Data'!B104="","",'Master Data'!B104) -> Ashwini Kumar 99
A104: =IF('Master Data'!A105="","",'Master Data'!A105) -> 100 | B104: =IF('Master Data'!B105="","",'Master Data'!B105) -> Ashwini Kumar 100

Sheet Deductions2
A1: All Staff IT Calculator 2024-25 By Ashwini Kumar Excel
A2: ='Master Data'!A2 -> Office Name - www.ashwinisharma.com
A4: Sr.No. | B4: Employee Name | C4: HRA | D4: Income from house property | E4: Home Loan Interest | F4: Home Loan Premium | G4: LIC (other than Salary | H4: PLI | I4: Tution Fees | J4: ULIP | K4: NSC | L4: NSC Interest | M4: PPF | N4: NSS | O4: Sukanya Scheme | P4: Equity Link Saving Scheme | Q4: Defferred Annuty | R4: EPEF (80CCD1) | S4: 80CCC | T4: Other Diposite In Section 80C
A5: =IF('Master Data'!A6="","",'Master Data'!A6) -> 1 | B5: =IF('Master Data'!B6="","",'Master Data'!B6) -> Ashwini Kumar 1
A6: =IF('Master Data'!A7="","",'Master Data'!A7) -> 2 | B6: =IF('Master Data'!B7="","",'Master Data'!B7) -> Arun Kumar
A7: =IF('Master Data'!A8="","",'Master Data'!A8) -> 3 | B7: =IF('Master Data'!B8="","",'Master Data'!B8) -> Dhirendra Kumar
A8: =IF('Master Data'!A9="","",'Master Data'!A9) -> 4 | B8: =IF('Master Data'!B9="","",'Master Data'!B9) -> Ashwini Kumar 4
A9: =IF('Master Data'!A10="","",'Master Data'!A10) -> 5 | B9: =IF('Master Data'!B10="","",'Master Data'!B10) -> Ashwini Kumar 5
A10: =IF('Master Data'!A11="","",'Master Data'!A11) -> 6 | B10: =IF('Master Data'!B11="","",'Master Data'!B11) -> Ashwini Kumar 6
A11: =IF('Master Data'!A12="","",'Master Data'!A12) -> 7 | B11: =IF('Master Data'!B12="","",'Master Data'!B12) -> Ashwini Kumar 7
A12: =IF('Master Data'!A13="","",'Master Data'!A13) -> 8 | B12: =IF('Master Data'!B13="","",'Master Data'!B13) -> Ashwini Kumar 8
A13: =IF('Master Data'!A14="","",'Master Data'!A14) -> 9 | B13: =IF('Master Data'!B14="","",'Master Data'!B14) -> Ashwini Kumar 9
A14: =IF('Master Data'!A15="","",'Master Data'!A15) -> 10 | B14: =IF('Master Data'!B15="","",'Master Data'!B15) -> Ashwini Kumar 10
A15: =IF('Master Data'!A16="","",'Master Data'!A16) -> 11 | B15: =IF('Master Data'!B16="","",'Master Data'!B16) -> Ashwini Kumar 11
A16: =IF('Master Data'!A17="","",'Master Data'!A17) -> 12 | B16: =IF('Master Data'!B17="","",'Master Data'!B17) -> Ashwini Kumar 12
A17: =IF('Master Data'!A18="","",'Master Data'!A18) -> 13 | B17: =IF('Master Data'!B18="","",'Master Data'!B18) -> Ashwini Kumar 13
A18: =IF('Master Data'!A19="","",'Master Data'!A19) -> 14 | B18: =IF('Master Data'!B19="","",'Master Data'!B19) -> Ashwini Kumar 14
A19: =IF('Master Data'!A20="","",'Master Data'!A20) -> 15 | B19: =IF('Master Data'!B20="","",'Master Data'!B20) -> Ashwini Kumar 15
A20: =IF('Master Data'!A21="","",'Master Data'!A21) -> 16 | B20: =IF('Master Data'!B21="","",'Master Data'!B21) -> Ashwini Kumar 16
A21: =IF('Master Data'!A22="","",'Master Data'!A22) -> 17 | B21: =IF('Master Data'!B22="","",'Master Data'!B22) -> Ashwini Kumar 17
A22: =IF('Master Data'!A23="","",'Master Data'!A23) -> 18 | B22: =IF('Master Data'!B23="","",'Master Data'!B23) -> Ashwini Kumar 18
A23: =IF('Master Data'!A24="","",'Master Data'!A24) -> 19 | B23: =IF('Master Data'!B24="","",'Master Data'!B24) -> Ashwini Kumar 19
A24: =IF('Master Data'!A25="","",'Master Data'!A25) -> 20 | B24: =IF('Master Data'!B25="","",'Master Data'!B25) -> Ashwini Kumar 20
A25: =IF('Master Data'!A26="","",'Master Data'!A26) -> 21 | B25: =IF('Master Data'!B26="","",'Master Data'!B26) -> Ashwini Kumar 21
A26: =IF('Master Data'!A27="","",'Master Data'!A27) -> 22 | B26: =IF('Master Data'!B27="","",'Master Data'!B27) -> Ashwini Kumar 22
A27: =IF('Master Data'!A28="","",'Master Data'!A28) -> 23 | B27: =IF('Master Data'!B28="","",'Master Data'!B28) -> Ashwini Kumar 23
A28: =IF('Master Data'!A29="","",'Master Data'!A29) -> 24 | B28: =IF('Master Data'!B29="","",'Master Data'!B29) -> Ashwini Kumar 24
A29: =IF('Master Data'!A30="","",'Master Data'!A30) -> 25 | B29: =IF('Master Data'!B30="","",'Master Data'!B30) -> Ashwini Kumar 25
A30: =IF('Master Data'!A31="","",'Master Data'!A31) -> 26 | B30: =IF('Master Data'!B31="","",'Master Data'!B31) -> Ashwini Kumar 26
A31: =IF('Master Data'!A32="","",'Master Data'!A32) -> 27 | B31: =IF('Master Data'!B32="","",'Master Data'!B32) -> Ashwini Kumar 27
A32: =IF('Master Data'!A33="","",'Master Data'!A33) -> 28 | B32: =IF('Master Data'!B33="","",'Master Data'!B33) -> Ashwini Kumar 28
A33: =IF('Master Data'!A34="","",'Master Data'!A34) -> 29 | B33: =IF('Master Data'!B34="","",'Master Data'!B34) -> Ashwini Kumar 29
A34: =IF('Master Data'!A35="","",'Master Data'!A35) -> 30 | B34: =IF('Master Data'!B35="","",'Master Data'!B35) -> Ashwini Kumar 30
A35: =IF('Master Data'!A36="","",'Master Data'!A36) -> 31 | B35: =IF('Master Data'!B36="","",'Master Data'!B36) -> Ashwini Kumar 31
A36: =IF('Master Data'!A37="","",'Master Data'!A37) -> 32 | B36: =IF('Master Data'!B37="","",'Master Data'!B37) -> Ashwini Kumar 32
A37: =IF('Master Data'!A38="","",'Master Data'!A38) -> 33 | B37: =IF('Master Data'!B38="","",'Master Data'!B38) -> Ashwini Kumar 33
A38: =IF('Master Data'!A39="","",'Master Data'!A39) -> 34 | B38: =IF('Master Data'!B39="","",'Master Data'!B39) -> Ashwini Kumar 34
A39: =IF('Master Data'!A40="","",'Master Data'!A40) -> 35 | B39: =IF('Master Data'!B40="","",'Master Data'!B40) -> Ashwini Kumar 35
A40: =IF('Master Data'!A41="","",'Master Data'!A41) -> 36 | B40: =IF('Master Data'!B41="","",'Master Data'!B41) -> Ashwini Kumar 36
A41: =IF('Master Data'!A42="","",'Master Data'!A42) -> 37 | B41: =IF('Master Data'!B42="","",'Master Data'!B42) -> Ashwini Kumar 37
A42: =IF('Master Data'!A43="","",'Master Data'!A43) -> 38 | B42: =IF('Master Data'!B43="","",'Master Data'!B43) -> Ashwini Kumar 38
A43: =IF('Master Data'!A44="","",'Master Data'!A44) -> 39 | B43: =IF('Master Data'!B44="","",'Master Data'!B44) -> Ashwini Kumar 39
A44: =IF('Master Data'!A45="","",'Master Data'!A45) -> 40 | B44: =IF('Master Data'!B45="","",'Master Data'!B45) -> Ashwini Kumar 40
A45: =IF('Master Data'!A46="","",'Master Data'!A46) -> 41 | B45: =IF('Master Data'!B46="","",'Master Data'!B46) -> Ashwini Kumar 41
A46: =IF('Master Data'!A47="","",'Master Data'!A47) -> 42 | B46: =IF('Master Data'!B47="","",'Master Data'!B47) -> Ashwini Kumar 42
A47: =IF('Master Data'!A48="","",'Master Data'!A48) -> 43 | B47: =IF('Master Data'!B48="","",'Master Data'!B48) -> Ashwini Kumar 43
A48: =IF('Master Data'!A49="","",'Master Data'!A49) -> 44 | B48: =IF('Master Data'!B49="","",'Master Data'!B49) -> Ashwini Kumar 44
A49: =IF('Master Data'!A50="","",'Master Data'!A50) -> 45 | B49: =IF('Master Data'!B50="","",'Master Data'!B50) -> Ashwini Kumar 45
A50: =IF('Master Data'!A51="","",'Master Data'!A51) -> 46 | B50: =IF('Master Data'!B51="","",'Master Data'!B51) -> Ashwini Kumar 46
A51: =IF('Master Data'!A52="","",'Master Data'!A52) -> 47 | B51: =IF('Master Data'!B52="","",'Master Data'!B52) -> Ashwini Kumar 47
A52: =IF('Master Data'!A53="","",'Master Data'!A53) -> 48 | B52: =IF('Master Data'!B53="","",'Master Data'!B53) -> Ashwini Kumar 48
A53: =IF('Master Data'!A54="","",'Master Data'!A54) -> 49 | B53: =IF('Master Data'!B54="","",'Master Data'!B54) -> Ashwini Kumar 49
A54: =IF('Master Data'!A55="","",'Master Data'!A55) -> 50 | B54: =IF('Master Data'!B55="","",'Master Data'!B55) -> Ashwini Kumar 50
A55: =IF('Master Data'!A56="","",'Master Data'!A56) -> 51 | B55: =IF('Master Data'!B56="","",'Master Data'!B56) -> Ashwini Kumar 51
A56: =IF('Master Data'!A57="","",'Master Data'!A57) -> 52 | B56: =IF('Master Data'!B57="","",'Master Data'!B57) -> Ashwini Kumar 52
A57: =IF('Master Data'!A58="","",'Master Data'!A58) -> 53 | B57: =IF('Master Data'!B58="","",'Master Data'!B58) -> Ashwini Kumar 53
A58: =IF('Master Data'!A59="","",'Master Data'!A59) -> 54 | B58: =IF('Master Data'!B59="","",'Master Data'!B59) -> Ashwini Kumar 54
A59: =IF('Master Data'!A60="","",'Master Data'!A60) -> 55 | B59: =IF('Master Data'!B60="","",'Master Data'!B60) -> Ashwini Kumar 55
A60: =IF('Master Data'!A61="","",'Master Data'!A61) -> 56 | B60: =IF('Master Data'!B61="","",'Master Data'!B61) -> Ashwini Kumar 56
A61: =IF('Master Data'!A62="","",'Master Data'!A62) -> 57 | B61: =IF('Master Data'!B62="","",'Master Data'!B62) -> Ashwini Kumar 57
A62: =IF('Master Data'!A63="","",'Master Data'!A63) -> 58 | B62: =IF('Master Data'!B63="","",'Master Data'!B63) -> Ashwini Kumar 58
A63: =IF('Master Data'!A64="","",'Master Data'!A64) -> 59 | B63: =IF('Master Data'!B64="","",'Master Data'!B64) -> Ashwini Kumar 59
A64: =IF('Master Data'!A65="","",'Master Data'!A65) -> 60 | B64: =IF('Master Data'!B65="","",'Master Data'!B65) -> Ashwini Kumar 60
A65: =IF('Master Data'!A66="","",'Master Data'!A66) -> 61 | B65: =IF('Master Data'!B66="","",'Master Data'!B66) -> Ashwini Kumar 61
A66: =IF('Master Data'!A67="","",'Master Data'!A67) -> 62 | B66: =IF('Master Data'!B67="","",'Master Data'!B67) -> Ashwini Kumar 62
A67: =IF('Master Data'!A68="","",'Master Data'!A68) -> 63 | B67: =IF('Master Data'!B68="","",'Master Data'!B68) -> Ashwini Kumar 63
A68: =IF('Master Data'!A69="","",'Master Data'!A69) -> 64 | B68: =IF('Master Data'!B69="","",'Master Data'!B69) -> Ashwini Kumar 64
A69: =IF('Master Data'!A70="","",'Master Data'!A70) -> 65 | B69: =IF('Master Data'!B70="","",'Master Data'!B70) -> Ashwini Kumar 65
A70: =IF('Master Data'!A71="","",'Master Data'!A71) -> 66 | B70: =IF('Master Data'!B71="","",'Master Data'!B71) -> Ashwini Kumar 66
A71: =IF('Master Data'!A72="","",'Master Data'!A72) -> 67 | B71: =IF('Master Data'!B72="","",'Master Data'!B72) -> Ashwini Kumar 67
A72: =IF('Master Data'!A73="","",'Master Data'!A73) -> 68 | B72: =IF('Master Data'!B73="","",'Master Data'!B73) -> Ashwini Kumar 68
A73: =IF('Master Data'!A74="","",'Master Data'!A74) -> 69 | B73: =IF('Master Data'!B74="","",'Master Data'!B74) -> Ashwini Kumar 69
A74: =IF('Master Data'!A75="","",'Master Data'!A75) -> 70 | B74: =IF('Master Data'!B75="","",'Master Data'!B75) -> Ashwini Kumar 70
A75: =IF('Master Data'!A76="","",'Master Data'!A76) -> 71 | B75: =IF('Master Data'!B76="","",'Master Data'!B76) -> Ashwini Kumar 71
A76: =IF('Master Data'!A77="","",'Master Data'!A77) -> 72 | B76: =IF('Master Data'!B77="","",'Master Data'!B77) -> Ashwini Kumar 72
A77: =IF('Master Data'!A78="","",'Master Data'!A78) -> 73 | B77: =IF('Master Data'!B78="","",'Master Data'!B78) -> Ashwini Kumar 73
A78: =IF('Master Data'!A79="","",'Master Data'!A79) -> 74 | B78: =IF('Master Data'!B79="","",'Master Data'!B79) -> Ashwini Kumar 74
A79: =IF('Master Data'!A80="","",'Master Data'!A80) -> 75 | B79: =IF('Master Data'!B80="","",'Master Data'!B80) -> Ashwini Kumar 75
A80: =IF('Master Data'!A81="","",'Master Data'!A81) -> 76 | B80: =IF('Master Data'!B81="","",'Master Data'!B81) -> Ashwini Kumar 76
A81: =IF('Master Data'!A82="","",'Master Data'!A82) -> 77 | B81: =IF('Master Data'!B82="","",'Master Data'!B82) -> Ashwini Kumar 77
A82: =IF('Master Data'!A83="","",'Master Data'!A83) -> 78 | B82: =IF('Master Data'!B83="","",'Master Data'!B83) -> Ashwini Kumar 78
A83: =IF('Master Data'!A84="","",'Master Data'!A84) -> 79 | B83: =IF('Master Data'!B84="","",'Master Data'!B84) -> Ashwini Kumar 79
A84: =IF('Master Data'!A85="","",'Master Data'!A85) -> 80 | B84: =IF('Master Data'!B85="","",'Master Data'!B85) -> Ashwini Kumar 80
A85: =IF('Master Data'!A86="","",'Master Data'!A86) -> 81 | B85: =IF('Master Data'!B86="","",'Master Data'!B86) -> Ashwini Kumar 81
A86: =IF('Master Data'!A87="","",'Master Data'!A87) -> 82 | B86: =IF('Master Data'!B87="","",'Master Data'!B87) -> Ashwini Kumar 82
A87: =IF('Master Data'!A88="","",'Master Data'!A88) -> 83 | B87: =IF('Master Data'!B88="","",'Master Data'!B88) -> Ashwini Kumar 83
A88: =IF('Master Data'!A89="","",'Master Data'!A89) -> 84 | B88: =IF('Master Data'!B89="","",'Master Data'!B89) -> Ashwini Kumar 84
A89: =IF('Master Data'!A90="","",'Master Data'!A90) -> 85 | B89: =IF('Master Data'!B90="","",'Master Data'!B90) -> Ashwini Kumar 85
A90: =IF('Master Data'!A91="","",'Master Data'!A91) -> 86 | B90: =IF('Master Data'!B91="","",'Master Data'!B91) -> Ashwini Kumar 86
A91: =IF('Master Data'!A92="","",'Master Data'!A92) -> 87 | B91: =IF('Master Data'!B92="","",'Master Data'!B92) -> Ashwini Kumar 87
A92: =IF('Master Data'!A93="","",'Master Data'!A93) -> 88 | B92: =IF('Master Data'!B93="","",'Master Data'!B93) -> Ashwini Kumar 88
A93: =IF('Master Data'!A94="","",'Master Data'!A94) -> 89 | B93: =IF('Master Data'!B94="","",'Master Data'!B94) -> Ashwini Kumar 89
A94: =IF('Master Data'!A95="","",'Master Data'!A95) -> 90 | B94: =IF('Master Data'!B95="","",'Master Data'!B95) -> Ashwini Kumar 90
A95: =IF('Master Data'!A96="","",'Master Data'!A96) -> 91 | B95: =IF('Master Data'!B96="","",'Master Data'!B96) -> Ashwini Kumar 91
A96: =IF('Master Data'!A97="","",'Master Data'!A97) -> 92 | B96: =IF('Master Data'!B97="","",'Master Data'!B97) -> Ashwini Kumar 92
A97: =IF('Master Data'!A98="","",'Master Data'!A98) -> 93 | B97: =IF('Master Data'!B98="","",'Master Data'!B98) -> Ashwini Kumar 93
A98: =IF('Master Data'!A99="","",'Master Data'!A99) -> 94 | B98: =IF('Master Data'!B99="","",'Master Data'!B99) -> Ashwini Kumar 94
A99: =IF('Master Data'!A100="","",'Master Data'!A100) -> 95 | B99: =IF('Master Data'!B100="","",'Master Data'!B100) -> Ashwini Kumar 95
A100: =IF('Master Data'!A101="","",'Master Data'!A101) -> 96 | B100: =IF('Master Data'!B101="","",'Master Data'!B101) -> Ashwini Kumar 96
A101: =IF('Master Data'!A102="","",'Master Data'!A102) -> 97 | B101: =IF('Master Data'!B102="","",'Master Data'!B102) -> Ashwini Kumar 97
A102: =IF('Master Data'!A103="","",'Master Data'!A103) -> 98 | B102: =IF('Master Data'!B103="","",'Master Data'!B103) -> Ashwini Kumar 98
A103: =IF('Master Data'!A104="","",'Master Data'!A104) -> 99 | B103: =IF('Master Data'!B104="","",'Master Data'!B104) -> Ashwini Kumar 99
A104: =IF('Master Data'!A105="","",'Master Data'!A105) -> 100 | B104: =IF('Master Data'!B105="","",'Master Data'!B105) -> Ashwini Kumar 100

Sheet Deductions3
A1: All Staff IT Calculator 2024-25 By Ashwini Kumar Excel
A2: Office Name - www.ashwinisharma.com
A4: Sr.No. | B4: Employee Name | C4: 80CCD(1) | D4: 80CCD(1B) (Max 50,000) | E4: 80 D (25000/ 50000 (Sr.Citi.) | F4: 80DD (75000/ 125000) | G4: 80DDB (40000/ 100000 | H4: 80E | I4: 80G (50%/100% | J4: 80U (75000/ 125000 | K4: 80GGA | L4: 80EE | M4: 80EEA | N4: TDS/ Tax other than Salary
A5: =IF('Master Data'!A6="","",'Master Data'!A6) -> 1 | B5: =IF('Master Data'!B6="","",'Master Data'!B6) -> Ashwini Kumar 1 | AF5: 1 | AG5: 2024-03-01
A6: =IF('Master Data'!A7="","",'Master Data'!A7) -> 2 | B6: =IF('Master Data'!B7="","",'Master Data'!B7) -> Arun Kumar | AF6: 2 | AG6: 2024-04-01
A7: =IF('Master Data'!A8="","",'Master Data'!A8) -> 3 | B7: =IF('Master Data'!B8="","",'Master Data'!B8) -> Dhirendra Kumar | AF7: 3 | AG7: 2024-05-01
A8: =IF('Master Data'!A9="","",'Master Data'!A9) -> 4 | B8: =IF('Master Data'!B9="","",'Master Data'!B9) -> Ashwini Kumar 4 | AF8: 4 | AG8: 2024-06-01
A9: =IF('Master Data'!A10="","",'Master Data'!A10) -> 5 | B9: =IF('Master Data'!B10="","",'Master Data'!B10) -> Ashwini Kumar 5 | AF9: 5 | AG9: 2024-07-01
A10: =IF('Master Data'!A11="","",'Master Data'!A11) -> 6 | B10: =IF('Master Data'!B11="","",'Master Data'!B11) -> Ashwini Kumar 6 | AF10: 6 | AG10: 2024-08-01
A11: =IF('Master Data'!A12="","",'Master Data'!A12) -> 7 | B11: =IF('Master Data'!B12="","",'Master Data'!B12) -> Ashwini Kumar 7 | AF11: 7 | AG11: 2024-09-01
A12: =IF('Master Data'!A13="","",'Master Data'!A13) -> 8 | B12: =IF('Master Data'!B13="","",'Master Data'!B13) -> Ashwini Kumar 8 | AF12: 8 | AG12: 2024-10-01
A13: =IF('Master Data'!A14="","",'Master Data'!A14) -> 9 | B13: =IF('Master Data'!B14="","",'Master Data'!B14) -> Ashwini Kumar 9 | AF13: 9 | AG13: 2024-11-01
A14: =IF('Master Data'!A15="","",'Master Data'!A15) -> 10 | B14: =IF('Master Data'!B15="","",'Master Data'!B15) -> Ashwini Kumar 10 | AF14: 10 | AG14: 2024-12-01
A15: =IF('Master Data'!A16="","",'Master Data'!A16) -> 11 | B15: =IF('Master Data'!B16="","",'Master Data'!B16) -> Ashwini Kumar 11 | AF15: 11 | AG15: 2025-01-01
A16: =IF('Master Data'!A17="","",'Master Data'!A17) -> 12 | B16: =IF('Master Data'!B17="","",'Master Data'!B17) -> Ashwini Kumar 12 | AF16: 12 | AG16: 2025-02-01
A17: =IF('Master Data'!A18="","",'Master Data'!A18) -> 13 | B17: =IF('Master Data'!B18="","",'Master Data'!B18) -> Ashwini Kumar 13
A18: =IF('Master Data'!A19="","",'Master Data'!A19) -> 14 | B18: =IF('Master Data'!B19="","",'Master Data'!B19) -> Ashwini Kumar 14
A19: =IF('Master Data'!A20="","",'Master Data'!A20) -> 15 | B19: =IF('Master Data'!B20="","",'Master Data'!B20) -> Ashwini Kumar 15
A20: =IF('Master Data'!A21="","",'Master Data'!A21) -> 16 | B20: =IF('Master Data'!B21="","",'Master Data'!B21) -> Ashwini Kumar 16
A21: =IF('Master Data'!A22="","",'Master Data'!A22) -> 17 | B21: =IF('Master Data'!B22="","",'Master Data'!B22) -> Ashwini Kumar 17
A22: =IF('Master Data'!A23="","",'Master Data'!A23) -> 18 | B22: =IF('Master Data'!B23="","",'Master Data'!B23) -> Ashwini Kumar 18
A23: =IF('Master Data'!A24="","",'Master Data'!A24) -> 19 | B23: =IF('Master Data'!B24="","",'Master Data'!B24) -> Ashwini Kumar 19
A24: =IF('Master Data'!A25="","",'Master Data'!A25) -> 20 | B24: =IF('Master Data'!B25="","",'Master Data'!B25) -> Ashwini Kumar 20
A25: =IF('Master Data'!A26="","",'Master Data'!A26) -> 21 | B25: =IF('Master Data'!B26="","",'Master Data'!B26) -> Ashwini Kumar 21
A26: =IF('Master Data'!A27="","",'Master Data'!A27) -> 22 | B26: =IF('Master Data'!B27="","",'Master Data'!B27) -> Ashwini Kumar 22
A27: =IF('Master Data'!A28="","",'Master Data'!A28) -> 23 | B27: =IF('Master Data'!B28="","",'Master Data'!B28) -> Ashwini Kumar 23
A28: =IF('Master Data'!A29="","",'Master Data'!A29) -> 24 | B28: =IF('Master Data'!B29="","",'Master Data'!B29) -> Ashwini Kumar 24
A29: =IF('Master Data'!A30="","",'Master Data'!A30) -> 25 | B29: =IF('Master Data'!B30="","",'Master Data'!B30) -> Ashwini Kumar 25
A30: =IF('Master Data'!A31="","",'Master Data'!A31) -> 26 | B30: =IF('Master Data'!B31="","",'Master Data'!B31) -> Ashwini Kumar 26
A31: =IF('Master Data'!A32="","",'Master Data'!A32) -> 27 | B31: =IF('Master Data'!B32="","",'Master Data'!B32) -> Ashwini Kumar 27
A32: =IF('Master Data'!A33="","",'Master Data'!A33) -> 28 | B32: =IF('Master Data'!B33="","",'Master Data'!B33) -> Ashwini Kumar 28
A33: =IF('Master Data'!A34="","",'Master Data'!A34) -> 29 | B33: =IF('Master Data'!B34="","",'Master Data'!B34) -> Ashwini Kumar 29
A34: =IF('Master Data'!A35="","",'Master Data'!A35) -> 30 | B34: =IF('Master Data'!B35="","",'Master Data'!B35) -> Ashwini Kumar 30
A35: =IF('Master Data'!A36="","",'Master Data'!A36) -> 31 | B35: =IF('Master Data'!B36="","",'Master Data'!B36) -> Ashwini Kumar 31
A36: =IF('Master Data'!A37="","",'Master Data'!A37) -> 32 | B36: =IF('Master Data'!B37="","",'Master Data'!B37) -> Ashwini Kumar 32
A37: =IF('Master Data'!A38="","",'Master Data'!A38) -> 33 | B37: =IF('Master Data'!B38="","",'Master Data'!B38) -> Ashwini Kumar 33
A38: =IF('Master Data'!A39="","",'Master Data'!A39) -> 34 | B38: =IF('Master Data'!B39="","",'Master Data'!B39) -> Ashwini Kumar 34
A39: =IF('Master Data'!A40="","",'Master Data'!A40) -> 35 | B39: =IF('Master Data'!B40="","",'Master Data'!B40) -> Ashwini Kumar 35
A40: =IF('Master Data'!A41="","",'Master Data'!A41) -> 36 | B40: =IF('Master Data'!B41="","",'Master Data'!B41) -> Ashwini Kumar 36
A41: =IF('Master Data'!A42="","",'Master Data'!A42) -> 37 | B41: =IF('Master Data'!B42="","",'Master Data'!B42) -> Ashwini Kumar 37
A42: =IF('Master Data'!A43="","",'Master Data'!A43) -> 38 | B42: =IF('Master Data'!B43="","",'Master Data'!B43) -> Ashwini Kumar 38
A43: =IF('Master Data'!A44="","",'Master Data'!A44) -> 39 | B43: =IF('Master Data'!B44="","",'Master Data'!B44) -> Ashwini Kumar 39
A44: =IF('Master Data'!A45="","",'Master Data'!A45) -> 40 | B44: =IF('Master Data'!B45="","",'Master Data'!B45) -> Ashwini Kumar 40
A45: =IF('Master Data'!A46="","",'Master Data'!A46) -> 41 | B45: =IF('Master Data'!B46="","",'Master Data'!B46) -> Ashwini Kumar 41
A46: =IF('Master Data'!A47="","",'Master Data'!A47) -> 42 | B46: =IF('Master Data'!B47="","",'Master Data'!B47) -> Ashwini Kumar 42
A47: =IF('Master Data'!A48="","",'Master Data'!A48) -> 43 | B47: =IF('Master Data'!B48="","",'Master Data'!B48) -> Ashwini Kumar 43
A48: =IF('Master Data'!A49="","",'Master Data'!A49) -> 44 | B48: =IF('Master Data'!B49="","",'Master Data'!B49) -> Ashwini Kumar 44
A49: =IF('Master Data'!A50="","",'Master Data'!A50) -> 45 | B49: =IF('Master Data'!B50="","",'Master Data'!B50) -> Ashwini Kumar 45
A50: =IF('Master Data'!A51="","",'Master Data'!A51) -> 46 | B50: =IF('Master Data'!B51="","",'Master Data'!B51) -> Ashwini Kumar 46
A51: =IF('Master Data'!A52="","",'Master Data'!A52) -> 47 | B51: =IF('Master Data'!B52="","",'Master Data'!B52) -> Ashwini Kumar 47
A52: =IF('Master Data'!A53="","",'Master Data'!A53) -> 48 | B52: =IF('Master Data'!B53="","",'Master Data'!B53) -> Ashwini Kumar 48
A53: =IF('Master Data'!A54="","",'Master Data'!A54) -> 49 | B53: =IF('Master Data'!B54="","",'Master Data'!B54) -> Ashwini Kumar 49
A54: =IF('Master Data'!A55="","",'Master Data'!A55) -> 50 | B54: =IF('Master Data'!B55="","",'Master Data'!B55) -> Ashwini Kumar 50
A55: =IF('Master Data'!A56="","",'Master Data'!A56) -> 51 | B55: =IF('Master Data'!B56="","",'Master Data'!B56) -> Ashwini Kumar 51
A56: =IF('Master Data'!A57="","",'Master Data'!A57) -> 52 | B56: =IF('Master Data'!B57="","",'Master Data'!B57) -> Ashwini Kumar 52
A57: =IF('Master Data'!A58="","",'Master Data'!A58) -> 53 | B57: =IF('Master Data'!B58="","",'Master Data'!B58) -> Ashwini Kumar 53
A58: =IF('Master Data'!A59="","",'Master Data'!A59) -> 54 | B58: =IF('Master Data'!B59="","",'Master Data'!B59) -> Ashwini Kumar 54
A59: =IF('Master Data'!A60="","",'Master Data'!A60) -> 55 | B59: =IF('Master Data'!B60="","",'Master Data'!B60) -> Ashwini Kumar 55
A60: =IF('Master Data'!A61="","",'Master Data'!A61) -> 56 | B60: =IF('Master Data'!B61="","",'Master Data'!B61) -> Ashwini Kumar 56
A61: =IF('Master Data'!A62="","",'Master Data'!A62) -> 57 | B61: =IF('Master Data'!B62="","",'Master Data'!B62) -> Ashwini Kumar 57
A62: =IF('Master Data'!A63="","",'Master Data'!A63) -> 58 | B62: =IF('Master Data'!B63="","",'Master Data'!B63) -> Ashwini Kumar 58
A63: =IF('Master Data'!A64="","",'Master Data'!A64) -> 59 | B63: =IF('Master Data'!B64="","",'Master Data'!B64) -> Ashwini Kumar 59
A64: =IF('Master Data'!A65="","",'Master Data'!A65) -> 60 | B64: =IF('Master Data'!B65="","",'Master Data'!B65) -> Ashwini Kumar 60
A65: =IF('Master Data'!A66="","",'Master Data'!A66) -> 61 | B65: =IF('Master Data'!B66="","",'Master Data'!B66) -> Ashwini Kumar 61
A66: =IF('Master Data'!A67="","",'Master Data'!A67) -> 62 | B66: =IF('Master Data'!B67="","",'Master Data'!B67) -> Ashwini Kumar 62
A67: =IF('Master Data'!A68="","",'Master Data'!A68) -> 63 | B67: =IF('Master Data'!B68="","",'Master Data'!B68) -> Ashwini Kumar 63
A68: =IF('Master Data'!A69="","",'Master Data'!A69) -> 64 | B68: =IF('Master Data'!B69="","",'Master Data'!B69) -> Ashwini Kumar 64
A69: =IF('Master Data'!A70="","",'Master Data'!A70) -> 65 | B69: =IF('Master Data'!B70="","",'Master Data'!B70) -> Ashwini Kumar 65
A70: =IF('Master Data'!A71="","",'Master Data'!A71) -> 66 | B70: =IF('Master Data'!B71="","",'Master Data'!B71) -> Ashwini Kumar 66
A71: =IF('Master Data'!A72="","",'Master Data'!A72) -> 67 | B71: =IF('Master Data'!B72="","",'Master Data'!B72) -> Ashwini Kumar 67
A72: =IF('Master Data'!A73="","",'Master Data'!A73) -> 68 | B72: =IF('Master Data'!B73="","",'Master Data'!B73) -> Ashwini Kumar 68
A73: =IF('Master Data'!A74="","",'Master Data'!A74) -> 69 | B73: =IF('Master Data'!B74="","",'Master Data'!B74) -> Ashwini Kumar 69
A74: =IF('Master Data'!A75="","",'Master Data'!A75) -> 70 | B74: =IF('Master Data'!B75="","",'Master Data'!B75) -> Ashwini Kumar 70
A75: =IF('Master Data'!A76="","",'Master Data'!A76) -> 71 | B75: =IF('Master Data'!B76="","",'Master Data'!B76) -> Ashwini Kumar 71
A76: =IF('Master Data'!A77="","",'Master Data'!A77) -> 72 | B76: =IF('Master Data'!B77="","",'Master Data'!B77) -> Ashwini Kumar 72
A77: =IF('Master Data'!A78="","",'Master Data'!A78) -> 73 | B77: =IF('Master Data'!B78="","",'Master Data'!B78) -> Ashwini Kumar 73
A78: =IF('Master Data'!A79="","",'Master Data'!A79) -> 74 | B78: =IF('Master Data'!B79="","",'Master Data'!B79) -> Ashwini Kumar 74
A79: =IF('Master Data'!A80="","",'Master Data'!A80) -> 75 | B79: =IF('Master Data'!B80="","",'Master Data'!B80) -> Ashwini Kumar 75
A80: =IF('Master Data'!A81="","",'Master Data'!A81) -> 76 | B80: =IF('Master Data'!B81="","",'Master Data'!B81) -> Ashwini Kumar 76
A81: =IF('Master Data'!A82="","",'Master Data'!A82) -> 77 | B81: =IF('Master Data'!B82="","",'Master Data'!B82) -> Ashwini Kumar 77
A82: =IF('Master Data'!A83="","",'Master Data'!A83) -> 78 | B82: =IF('Master Data'!B83="","",'Master Data'!B83) -> Ashwini Kumar 78
A83: =IF('Master Data'!A84="","",'Master Data'!A84) -> 79 | B83: =IF('Master Data'!B84="","",'Master Data'!B84) -> Ashwini Kumar 79
A84: =IF('Master Data'!A85="","",'Master Data'!A85) -> 80 | B84: =IF('Master Data'!B85="","",'Master Data'!B85) -> Ashwini Kumar 80
A85: =IF('Master Data'!A86="","",'Master Data'!A86) -> 81 | B85: =IF('Master Data'!B86="","",'Master Data'!B86) -> Ashwini Kumar 81
A86: =IF('Master Data'!A87="","",'Master Data'!A87) -> 82 | B86: =IF('Master Data'!B87="","",'Master Data'!B87) -> Ashwini Kumar 82
A87: =IF('Master Data'!A88="","",'Master Data'!A88) -> 83 | B87: =IF('Master Data'!B88="","",'Master Data'!B88) -> Ashwini Kumar 83
A88: =IF('Master Data'!A89="","",'Master Data'!A89) -> 84 | B88: =IF('Master Data'!B89="","",'Master Data'!B89) -> Ashwini Kumar 84
A89: =IF('Master Data'!A90="","",'Master Data'!A90) -> 85 | B89: =IF('Master Data'!B90="","",'Master Data'!B90) -> Ashwini Kumar 85
A90: =IF('Master Data'!A91="","",'Master Data'!A91) -> 86 | B90: =IF('Master Data'!B91="","",'Master Data'!B91) -> Ashwini Kumar 86
A91: =IF('Master Data'!A92="","",'Master Data'!A92) -> 87 | B91: =IF('Master Data'!B92="","",'Master Data'!B92) -> Ashwini Kumar 87
A92: =IF('Master Data'!A93="","",'Master Data'!A93) -> 88 | B92: =IF('Master Data'!B93="","",'Master Data'!B93) -> Ashwini Kumar 88
A93: =IF('Master Data'!A94="","",'Master Data'!A94) -> 89 | B93: =IF('Master Data'!B94="","",'Master Data'!B94) -> Ashwini Kumar 89
A94: =IF('Master Data'!A95="","",'Master Data'!A95) -> 90 | B94: =IF('Master Data'!B95="","",'Master Data'!B95) -> Ashwini Kumar 90
A95: =IF('Master Data'!A96="","",'Master Data'!A96) -> 91 | B95: =IF('Master Data'!B96="","",'Master Data'!B96) -> Ashwini Kumar 91
A96: =IF('Master Data'!A97="","",'Master Data'!A97) -> 92 | B96: =IF('Master Data'!B97="","",'Master Data'!B97) -> Ashwini Kumar 92
A97: =IF('Master Data'!A98="","",'Master Data'!A98) -> 93 | B97: =IF('Master Data'!B98="","",'Master Data'!B98) -> Ashwini Kumar 93
A98: =IF('Master Data'!A99="","",'Master Data'!A99) -> 94 | B98: =IF('Master Data'!B99="","",'Master Data'!B99) -> Ashwini Kumar 94
A99: =IF('Master Data'!A100="","",'Master Data'!A100) -> 95 | B99: =IF('Master Data'!B100="","",'Master Data'!B100) -> Ashwini Kumar 95
A100: =IF('Master Data'!A101="","",'Master Data'!A101) -> 96 | B100: =IF('Master Data'!B101="","",'Master Data'!B101) -> Ashwini Kumar 96
A101: =IF('Master Data'!A102="","",'Master Data'!A102) -> 97 | B101: =IF('Master Data'!B102="","",'Master Data'!B102) -> Ashwini Kumar 97
A102: =IF('Master Data'!A103="","",'Master Data'!A103) -> 98 | B102: =IF('Master Data'!B103="","",'Master Data'!B103) -> Ashwini Kumar 98
A103: =IF('Master Data'!A104="","",'Master Data'!A104) -> 99 | B103: =IF('Master Data'!B104="","",'Master Data'!B104) -> Ashwini Kumar 99
A104: =IF('Master Data'!A105="","",'Master Data'!A105) -> 100 | B104: =IF('Master Data'!B105="","",'Master Data'!B105) -> Ashwini Kumar 100

Sheet GA 55A
A1: ='Master Data'!A2 -> Office Name - www.ashwinisharma.com
A2: Emp No. | B2: 1 | C2: Salary and Deduction Detail for FY : 2024-25
B4: Name of Employee- | E4: =VLOOKUP($B$2,Master_Data,2,0) -> Ashwini Kumar 1 | K4: Post | M4: =VLOOKUP($B$2,Master_Data,3,0) -> Lecturer | R4: PAN No. | T4: =VLOOKUP($B$2,Master_Data,4,0) -> AAAAA5921A
A6: Month & Year | B6: Basic Pay | C6: DA | D6: HRA | E6: Bonus | F6: Wash Allowance | G6: Handi. Allowance | H6: CCA Allowance | I6: Other Allowance | J6: Gross Salary | K6: SIP | L6: SI Loan | M6: SI Loan Interest | N6: GPF/ GPF2004 | O6: GPF Loan | P6: RGHS | Q6: GIS | R6: LIC | S6: Hitkari Nidhi | T6: Other Ded1 | U6: Other Ded2 | V6: ITAX | W6: Total Deduction | X6: NET Payment
A7: 2024-03-01 | B7: =VLOOKUP($B$2,Master_Data,5,0) -> 51,400 | C7: =IFERROR(ROUND(B7*50%,0),0) -> 25,700 | D7: =ROUND(IF(VLOOKUP($B$2,Master_Data,6,0)=10%,B7*9%,B7*18%),0) -> 4,626 | F7: =VLOOKUP($B$2,Master_Data,11,0) -> 0 | G7: =VLOOKUP($B$2,Master_Data,12,0) -> 0 | H7: =VLOOKUP($B$2,Master_Data,10,0) -> 0 | I7: =VLOOKUP($B$2,Master_Data,13,0) -> 0 | J7: =SUM(B7:I7) -> 81,726 | K7: =VLOOKUP($B$2,Ded_1,3,0) -> 3,000 | N7: =IF(VLOOKUP($B$2,Ded_1,4,0)>0,VLOOKUP($B$2,Ded_1,4,0),IF(B7<23101,1450,IF(B7<28501,1625,IF(B7<38501,2100,IF(B7<51501,2850,IF(B7<62001,3575,IF(B7<72001,4200,IF(B7<80001,4800,IF(B7<116001,6150,IF(B7<167001,8900,10500)))))))))) -> 2,850 | P7: =IF(B7<18001,265,IF(B7<33501,440,IF(B7<54001,658,875))) -> 658 | R7: =VLOOKUP($B$2,Ded_1,7,0) -> 0 | T7: =VLOOKUP($B$2,Ded_1,8,0) -> 0 | U7: =VLOOKUP($B$2,Ded_1,9,0) -> 0 | V7: =VLOOKUP($B$2,Ded_1,10,0) -> 0 | W7: =SUM(K7:V7) -> 6,508 | X7: =J7-W7 -> 75,218 | AE7: 2024-03-01 | AF7: =B7 -> 51,400 | AG7: 50% | AH7: =C7 -> 25,700
A8: 2024-04-01 | B8: =B7 -> 51,400 | C8: =IFERROR(ROUND(B7*50%,0),0) -> 25,700 | D8: =ROUND(IF(VLOOKUP($B$2,Master_Data,6,0)=10%,B8*9%,B8*18%),0) -> 4,626 | F8: =F7 -> 0 | G8: =G7 -> 0 | H8: =H7 -> 0 | I8: =I7 -> 0 | J8: 81,726 | K8: =K7 -> 3,000 | L8: =L7 -> 0 | M8: =M7 -> 0 | N8: =IF(VLOOKUP($B$2,Ded_1,4,0)>0,VLOOKUP($B$2,Ded_1,4,0),IF(B8<23101,1450,IF(B8<28501,1625,IF(B8<38501,2100,IF(B8<51501,2850,IF(B8<62001,3575,IF(B8<72001,4200,IF(B8<80001,4800,IF(B8<116001,6150,IF(B8<167001,8900,10500)))))))))) -> 2,850 | O8: =O7 -> 0 | P8: =IF(B8<18001,265,IF(B8<33501,440,IF(B8<54001,658,875))) -> 658 | Q8: =VLOOKUP($B$2,Ded_1,5,0) -> 700 | R8: =R7 -> 0 | T8: =T7 -> 0 | U8: =U7 -> 0 | V8: =VLOOKUP($B$2,Ded_1,11,0) -> 0 | W8: 7,208 | X8: 74,518 | AE8: 2024-04-01 | AF8: =B7 -> 51,400 | AG8: 50% | AH8: 25,700
A9: 2024-05-01 | B9: =B7 -> 51,400 | C9: =IFERROR(ROUND(B9*50%,0),0) -> 25,700 | D9: =ROUND(IF(VLOOKUP($B$2,Master_Data,6,0)=10%,B9*9%,B9*18%),0) -> 4,626 | F9: =F8 -> 0 | G9: =G8 -> 0 | H9: =H8 -> 0 | I9: =I8 -> 0 | J9: 81,726 | K9: =K8 -> 3,000 | L9: =L8 -> 0 | M9: =M8 -> 0 | N9: =IF(VLOOKUP($B$2,Ded_1,4,0)>0,VLOOKUP($B$2,Ded_1,4,0),IF(B9<23101,1450,IF(B9<28501,1625,IF(B9<38501,2100,IF(B9<51501,2850,IF(B9<62001,3575,IF(B9<72001,4200,IF(B9<80001,4800,IF(B9<116001,6150,IF(B9<167001,8900,10500)))))))))) -> 2,850 | O9: =O8 -> 0 | P9: =IF(B9<18001,265,IF(B9<33501,440,IF(B9<54001,658,875))) -> 658 | R9: =R8 -> 0 | T9: =T8 -> 0 | U9: =U8 -> 0 | V9: =VLOOKUP($B$2,Ded_1,12,0) -> 0 | W9: 6,508 | X9: 75,218 | AE9: 2024-05-01 | AF9: =B9 -> 51,400 | AG9: 50% | AH9: 25,700
A10: 2024-06-01 | B10: =B9 -> 51,400 | C10: =IFERROR(ROUND(B10*50%,0),0) -> 25,700 | D10: =ROUND(IF(VLOOKUP($B$2,Master_Data,6,0)=10%,B10*9%,B10*18%),0) -> 4,626 | F10: =F9 -> 0 | G10: =G9 -> 0 | H10: =H9 -> 0 | I10: =I9 -> 0 | J10: 81,726 | K10: =K9 -> 3,000 | L10: =L9 -> 0 | M10: =M9 -> 0 | N10: =IF(VLOOKUP($B$2,Ded_1,4,0)>0,VLOOKUP($B$2,Ded_1,4,0),IF(B10<23101,1450,IF(B10<28501,1625,IF(B10<38501,2100,IF(B10<51501,2850,IF(B10<62001,3575,IF(B10<72001,4200,IF(B10<80001,4800,IF(B10<116001,6150,IF(B10<167001,8900,10500)))))))))) -> 2,850 | O10: =O9 -> 0 | P10: =IF(B10<18001,265,IF(B10<33501,440,IF(B10<54001,658,875))) -> 658 | R10: =R9 -> 0 | T10: =T9 -> 0 | U10: =U9 -> 0 | V10: =VLOOKUP($B$2,Ded_1,13,0) -> 0 | W10: 6,508 | X10: 75,218 | AE10: 2024-06-01 | AF10: 51,400 | AG10: 50% | AH10: 25,700
A11: 2024-07-01 | B11: =IFERROR(MROUND(B10*1.03,100),0) -> 52,900 | C11: =IFERROR(ROUND(B11*50%,0),0) -> 26,450 | D11: =ROUND(IF(VLOOKUP($B$2,Master_Data,6,0)=10%,B11*9%,B11*18%),0) -> 4,761 | F11: =F10 -> 0 | G11: =G10 -> 0 | H11: =H10 -> 0 | I11: =I10 -> 0 | J11: 84,111 | K11: =K10 -> 3,000 | L11: =L10 -> 0 | M11: =M10 -> 0 | N11: =IF(VLOOKUP($B$2,Ded_1,4,0)>0,VLOOKUP($B$2,Ded_1,4,0),IF(B11<23101,1450,IF(B11<28501,1625,IF(B11<38501,2100,IF(B11<51501,2850,IF(B11<62001,3575,IF(B11<72001,4200,IF(B11<80001,4800,IF(B11<116001,6150,IF(B11<167001,8900,10500)))))))))) -> 3,575 | O11: =O10 -> 0 | P11: =IF(B11<18001,265,IF(B11<33501,440,IF(B11<54001,658,875))) -> 658 | R11: =R10 -> 0 | T11: =T10 -> 0 | U11: =U10 -> 0 | V11: =VLOOKUP($B$2,Ded_1,14,0) -> 0 | W11: 7,233 | X11: 76,878 | AE11: 2024-07-01 | AF11: 52,900 | AG11: 50% | AH11: 26,450 | AI11: =ROUND(AF11/2*3%,0) -> 794 | AK11: =VLOOKUP($B$2,Master_Data,5,0) -> 51400
A12: 2024-08-01 | B12: =B11 -> 52,900 | C12: =IFERROR(ROUND(B12*50%,0),0) -> 26,450 | D12: =ROUND(IF(VLOOKUP($B$2,Master_Data,6,0)=10%,B12*9%,B12*18%),0) -> 4,761 | F12: =F11 -> 0 | G12: =G11 -> 0 | H12: =H11 -> 0 | I12: =I11 -> 0 | J12: 84,111 | K12: =K11 -> 3,000 | L12: =L11 -> 0 | M12: =M11 -> 0 | N12: =IF(VLOOKUP($B$2,Ded_1,4,0)>0,VLOOKUP($B$2,Ded_1,4,0),IF(B12<23101,1450,IF(B12<28501,1625,IF(B12<38501,2100,IF(B12<51501,2850,IF(B12<62001,3575,IF(B12<72001,4200,IF(B12<80001,4800,IF(B12<116001,6150,IF(B12<167001,8900,10500)))))))))) -> 3,575 | O12: =O11 -> 0 | P12: =IF(B12<18001,265,IF(B12<33501,440,IF(B12<54001,658,875))) -> 658 | R12: =R11 -> 0 | T12: =T11 -> 0 | U12: =U11 -> 0 | V12: =VLOOKUP($B$2,Ded_1,15,0) -> 0 | W12: 7,233 | X12: 76,878 | AE12: 2024-08-01 | AF12: 52,900 | AG12: 50% | AH12: 26,450 | AI12: =ROUND(AF12/2*3%,0) -> 794
A13: 2024-09-01 | B13: =B12 -> 52,900 | C13: =IFERROR(ROUND(B13*50%,0),0) -> 26,450 | D13: =ROUND(IF(VLOOKUP($B$2,Master_Data,6,0)=10%,B13*9%,B13*18%),0) -> 4,761 | F13: =F12 -> 0 | G13: =G12 -> 0 | H13: =H12 -> 0 | I13: =I12 -> 0 | J13: 84,111 | K13: =K12 -> 3,000 | L13: =L12 -> 0 | M13: =M12 -> 0 | N13: =IF(VLOOKUP($B$2,Ded_1,4,0)>0,VLOOKUP($B$2,Ded_1,4,0),IF(B13<23101,1450,IF(B13<28501,1625,IF(B13<38501,2100,IF(B13<51501,2850,IF(B13<62001,3575,IF(B13<72001,4200,IF(B13<80001,4800,IF(B13<116001,6150,IF(B13<167001,8900,10500)))))))))) -> 3,575 | O13: =O12 -> 0 | P13: =IF(B13<18001,265,IF(B13<33501,440,IF(B13<54001,658,875))) -> 658 | R13: =R12 -> 0 | T13: =T12 -> 0 | U13: =U12 -> 0 | V13: =VLOOKUP($B$2,Ded_1,16,0) -> 0 | W13: 7,233 | X13: 76,878 | AE13: 2024-09-01 | AF13: 52,900 | AG13: 50% | AH13: 26,450 | AI13: 794
A14: 2024-10-01 | B14: =B13 -> 52,900 | C14: =IFERROR(ROUND(B14*50%,0),0) -> 26,450 | D14: =ROUND(IF(VLOOKUP($B$2,Master_Data,6,0)=10%,B14*9%,B14*18%),0) -> 4,761 | F14: =F13 -> 0 | G14: =G13 -> 0 | H14: =H13 -> 0 | I14: =I13 -> 0 | J14: 84,111 | K14: =K13 -> 3,000 | L14: =L13 -> 0 | M14: =M13 -> 0 | N14: =IF(VLOOKUP($B$2,Ded_1,4,0)>0,VLOOKUP($B$2,Ded_1,4,0),IF(B14<23101,1450,IF(B14<28501,1625,IF(B14<38501,2100,IF(B14<51501,2850,IF(B14<62001,3575,IF(B14<72001,4200,IF(B14<80001,4800,IF(B14<116001,6150,IF(B14<167001,8900,10500)))))))))) -> 3,575 | O14: =O13 -> 0 | P14: =IF(B14<18001,265,IF(B14<33501,440,IF(B14<54001,658,875))) -> 658 | R14: =R13 -> 0 | T14: =T13 -> 0 | U14: =U13 -> 0 | V14: =VLOOKUP($B$2,Ded_1,17,0) -> 0 | W14: 7,233 | X14: 76,878 | AE14: 2024-10-01 | AF14: 52,900 | AG14: 50% | AH14: 26,450 | AI14: 794
A15: 2024-11-01 | B15: =B14 -> 52,900 | C15: =IFERROR(ROUND(B15*53%,0),0) -> 28,037 | D15: =ROUND(VLOOKUP($B$2,Master_Data,6,0)*B15,0) -> 5,290 | F15: =F14 -> 0 | G15: =G14 -> 0 | H15: =H14 -> 0 | I15: =I14 -> 0 | J15: 86,227 | K15: =K14 -> 3,000 | L15: =L14 -> 0 | M15: =M14 -> 0 | N15: =IF(VLOOKUP($B$2,Ded_1,4,0)>0,VLOOKUP($B$2,Ded_1,4,0),IF(B15<23101,1450,IF(B15<28501,1625,IF(B15<38501,2100,IF(B15<51501,2850,IF(B15<62001,3575,IF(B15<72001,4200,IF(B15<80001,4800,IF(B15<116001,6150,IF(B15<167001,8900,10500)))))))))) -> 3,575 | O15: =O14 -> 0 | P15: =IF(B15<18001,265,IF(B15<33501,440,IF(B15<54001,658,875))) -> 658 | R15: =R14 -> 0 | T15: =T14 -> 0 | U15: =U14 -> 0 | V15: =VLOOKUP($B$2,Ded_1,18,0) -> 0 | W15: 7,233 | X15: 78,994 | AE15: 2024-11-01 | AF15: 52,900 | AG15: 53% | AH15: 28,037
A16: 2024-12-01 | B16: =B15 -> 52,900 | C16: =IFERROR(ROUND(B16*53%,0),0) -> 28,037 | D16: =ROUND(VLOOKUP($B$2,Master_Data,6,0)*B16,0) -> 5,290 | F16: =F15 -> 0 | G16: =G15 -> 0 | H16: =H15 -> 0 | I16: =I15 -> 0 | J16: 86,227 | K16: =K15 -> 3,000 | L16: =L15 -> 0 | M16: =M15 -> 0 | N16: =IF(VLOOKUP($B$2,Ded_1,4,0)>0,VLOOKUP($B$2,Ded_1,4,0),IF(B16<23101,1450,IF(B16<28501,1625,IF(B16<38501,2100,IF(B16<51501,2850,IF(B16<62001,3575,IF(B16<72001,4200,IF(B16<80001,4800,IF(B16<116001,6150,IF(B16<167001,8900,10500)))))))))) -> 3,575 | O16: =O15 -> 0 | P16: =IF(B16<18001,265,IF(B16<33501,440,IF(B16<54001,658,875))) -> 658 | R16: =R15 -> 0 | S16: =VLOOKUP($B$2,Ded_1,6,0) -> 250 | T16: =T15 -> 0 | U16: =U15 -> 0 | V16: =VLOOKUP($B$2,Ded_1,19,0) -> 0 | W16: 7,483 | X16: 78,744 | AE16: 2024-12-01 | AF16: 52,900 | AG16: 53% | AH16: 28,037
A17: 2025-01-01 | B17: =B16 -> 52,900 | C17: =IFERROR(ROUND(B17*53%,0),0) -> 28,037 | D17: =ROUND(VLOOKUP($B$2,Master_Data,6,0)*B17,0) -> 5,290 | F17: =F16 -> 0 | G17: =G16 -> 0 | H17: =H16 -> 0 | I17: =I16 -> 0 | J17: 86,227 | K17: =K16 -> 3,000 | L17: =L16 -> 0 | M17: =M16 -> 0 | N17: =IF(VLOOKUP($B$2,Ded_1,4,0)>0,VLOOKUP($B$2,Ded_1,4,0),IF(B17<23101,1450,IF(B17<28501,1625,IF(B17<38501,2100,IF(B17<51501,2850,IF(B17<62001,3575,IF(B17<72001,4200,IF(B17<80001,4800,IF(B17<116001,6150,IF(B17<167001,8900,10500)))))))))) -> 3,575 | O17: =O16 -> 0 | P17: =IF(B17<18001,265,IF(B17<33501,440,IF(B17<54001,658,875))) -> 658 | R17: =R16 -> 0 | T17: =T16 -> 0 | U17: =U16 -> 0 | V17: =VLOOKUP($B$2,Ded_1,20,0) -> 0 | W17: 7,233 | X17: 78,994 | AE17: 2025-01-01 | AF17: 52,900 | AG17: 53% | AH17: 28,037
A18: 2025-02-01 | B18: =B17 -> 52,900 | C18: =IFERROR(ROUND(B18*53%,0),0) -> 28,037 | D18: =VLOOKUP($B$2,Master_Data,6,0)*B18 -> 5,290 | F18: =F17 -> 0 | G18: =G17 -> 0 | H18: =H17 -> 0 | I18: =I17 -> 0 | J18: 86,227 | K18: =K17 -> 3,000 | L18: =L17 -> 0 | M18: =M17 -> 0 | N18: =IF(VLOOKUP($B$2,Ded_1,4,0)>0,VLOOKUP($B$2,Ded_1,4,0),IF(B18<23101,1450,IF(B18<28501,1625,IF(B18<38501,2100,IF(B18<51501,2850,IF(B18<62001,3575,IF(B18<72001,4200,IF(B18<80001,4800,IF(B18<116001,6150,IF(B18<167001,8900,10500)))))))))) -> 3,575 | O18: =O17 -> 0 | P18: =IF(B18<18001,265,IF(B18<33501,440,IF(B18<54001,658,875))) -> 658 | R18: =R17 -> 0 | T18: =T17 -> 0 | U18: =U17 -> 0 | V18: =VLOOKUP($B$2,Ded_1,21,0) -> 0 | W18: 7,233 | X18: 78,994 | AE18: 2025-02-01 | AF18: 52,900 | AG18: 53% | AH18: 28,037
A19: DA Arrear Jan 24 to Feb 24 | C19: =SUM(AF7*4%,AF8*4%) -> 4,112 | J19: 4,112 | L19: 0 | N19: =IF(C19="","",C19) -> 4,112 | W19: 4,112 | X19: 0
A20: Bonus | E20: =IF(VLOOKUP($B$2,Master_Data,7,0)="","",ROUND(6774/12*VLOOKUP($B$2,Master_Data,7,0),0)) -> 6,774 | J20: 6,774 | N20: =IFERROR(ROUND(E20*25%,0),0) -> 1,694 | W20: 1,694 | X20: 5,080
A21: Surrender | B21: =IFERROR(ROUND(VLOOKUP(VLOOKUP($B$2,Master_Data,9,0),$AE$7:$AI$18,2,0)/2,0),0) -> 25700 | C21: =IFERROR(ROUND(B21*VLOOKUP(VLOOKUP($B$2,Master_Data,9,0),$AE$7:$AI$18,3,0),0),0) -> 12,850 | J21: 38,550 | W21: 0 | X21: 38,550
A22: DA Arrear Jul 24 to Oct 24 | C22: =SUM(AF11*3%,AF12*3%,AF13*3%,AF14*3%) -> 6,348 | J22: 6,348 | N22: =IF(C22="","",C22) -> 6,348 | W22: 6,348 | X22: 0
A23: Fixation Arrear | J23: 0 | W23: 0 | X23: 0
A24: Salary Arrear1 | J24: 0 | W24: 0 | X24: 0
A25: Salary Arrear2 | J25: 0 | W25: 0 | X25: 0 | Z25: =VLOOKUP($B$2,Master_Data,5,0) -> 51400
A26: Surrender DA Arrear | C26: =IF(VLOOKUP($B$2,Master_Data,9,0)=AE11,AI11,IF(VLOOKUP($B$2,Master_Data,9,0)=AE12,AI12,IF(VLOOKUP($B$2,Master_Data,9,0)=AE13,AI13,IF(VLOOKUP($B$2,Master_Data,9,0)=AE14,AI14,0)))) -> 0 | J26: 0 | W26: 0 | X26: 0
A27: Total | B27: =SUM(B7:B26) -> 654,500 | C27: 344,058 | D27: 58,708 | E27: 6,774 | F27: 0 | G27: 0 | H27: 0 | I27: 0 | J27: 1,064,040 | K27: 36,000 | L27: 0 | M27: 0 | N27: 52,154 | O27: 0 | P27: 7,896 | Q27: 700 | R27: 0 | S27: 250 | T27: 0 | U27: 0 | V27: 0 | W27: 97,000 | X27: 967,040
A29: Signature Of Employee | W29: Signature Of DDO
G30: Software Prepared By Ashwini Kumar : 9166023711 www.ashwinisharma.com

Sheet Tax Calculator By Ashwini
A1: ='Master Data'!A2 -> Office Name - www.ashwinisharma.com
A2: Employee No. | D2: =IF('GA 55A'!B2="","",'GA 55A'!B2) -> 1 | G2: INCOME TAX CALCULATION FORM FY 2024-25 | M2: =IF(O2="New Regime",1,2) -> 1 | N2: Select Regime | O2: New Regime
A3: 1 | B3: Name - | D3: =VLOOKUP(D2,Master_Data,2,0) -> Ashwini Kumar 1 | H3: Post - | J3: =VLOOKUP(D2,Master_Data,3,0) -> Lecturer | M3: PAN No.- | O3: =VLOOKUP(D2,Master_Data,4,0) -> AAAAA5921A
A4: 2 | B4: Total salary received in Financial Year 2024-25 | O4: =IF('GA 55A'!J27="","",'GA 55A'!J27) -> ₹1,064,040.00
A5: 3 | B5: House rent, under section 10 (13-A) and other allowances under section 10 (14) which are tax free - | O5: =IF(M2=2,VLOOKUP(D2,Ded_2,3,0),0) -> 0
A6: 4 | B6: Balance (2-3) | O6: =IF(M2=2,O4-O5,O4) -> ₹1,064,040.00
A7: 5 | B7: =IF(M2=1,"Standard Deduction Maxium 75000 Section 16 (i a)","(I)Standard Deduction Maxium 50000 Section 16 (i a)") -> Standard Deduction Maxium 75000 Section 16 (i a) | N7: =IF(M2=1,75000,50000) -> 75,000.00
B8: (II) Entertainment Allowance under Section 16(ii) Maxium 5000 | N8: 0.00
B9: (III)Business tax under section 16 (iii) | N9: 0.00
B10: Total 5 | O10: =SUM(N7:N9) -> ₹75,000.00
A11: 6 | B11: Balance(4-5) | O11: =O6-O10 -> ₹989,040.00
A12: 7 | B12: (A) Income from house property (1) Nil for own use | I12: (2) Rent received Rs. | M12: =IF(M2=2,VLOOKUP(D2,Ded_2,4,0),0) -> 0.00
B13: (B) Subtract | E13: 30% of rent | G13: Home Loan Interest | I13: House Tax | K13: Sum 7 (B)
E14: =ROUND($M$12*0.3,0) -> 0.00 | G14: =IF(M2=2,VLOOKUP(D2,Ded_2,5,0),0) -> 0.00 | I14: 0.00 | K14: =SUM(E14:J14) -> 0.00
B15: Balance - / + (of 7(A) and 7(B) | O15: =IF(M2=2,$M$12-$K$14,0) -> 0
A16: 8 | B16: Total Balance - / + (6 & 7) | O16: =$O$11+$O$15 -> ₹989,040.00
A17: 9 | B17: Other Income | O17: =SUM(VLOOKUP(D2,Master_Data,15,0),VLOOKUP(D2,Master_Data,16,0),VLOOKUP(D2,Master_Data,17,0)) -> 0
A18: 10 | B18: Gross Income (Sum 8+9) | O18: =SUM(O16:O17) -> ₹989,040.00
A19: 11 | B19: Deductions - Section US 80C, 80CCC, 80CCD(1) (A) Maximum limit Rs 150000 (section 80CCE), other than section 80CCD(2)
B20: 1 | C20: SI (State Insurance) | G20: =IF(M2=2,'GA 55A'!K27,0) -> 0.00 | I20: 11 | J20: EPEF (80CCD1) | N20: =VLOOKUP(D2,Ded_2,18,0) -> 0.00
B21: 2 | C21: LIC | G21: =IF(M2=2,SUM('GA 55A'!R27,VLOOKUP(D2,Ded_2,7,0)),0) -> 0.00 | I21: 12 | J21: Contribution for pension plan (80CCC) | N21: =IF(M2=2,VLOOKUP(D2,Ded_2,19,0),0) -> 0.00
B22: 3 | C22: GPF 2024/ GPF | G22: =IF(M2=2,'GA 55A'!N27,0) -> 0.00 | I22: 13 | J22: Interest on national savings certificate | N22: =IF(M2=2,VLOOKUP(D2,Ded_2,12,0),0) -> 0.00
B23: 4 | C23: National Savings Certificate | G23: =IF(M2=2,VLOOKUP(D2,Ded_2,11,0),0) -> 0.00 | I23: 14 | J23: Tution Fees | N23: =IF(M2=2,VLOOKUP(D2,Ded_2,9,0),0) -> 0.00
B24: 5 | C24: Public Provident Fund (PPF) | G24: =IF(M2=2,VLOOKUP(D2,Ded_2,13,0),0) -> 0.00 | I24: 15 | J24: Equity Link Saving Scheme | N24: =IF(M2=2,VLOOKUP(D2,Ded_2,16,0),0) -> 0.00
B25: 6 | C25: National Savings Scheme (NSS) | G25: =IF(M2=2,VLOOKUP(D2,Ded_2,14,0),0) -> 0.00 | I25: 16 | J25: Defferred Annuty | N25: =IF(M2=2,VLOOKUP(D2,Ded_2,17,0),0) -> 0.00
B26: 7 | C26: GIS | G26: =IF(M2=2,VLOOKUP(D2,Ded_1,5,0),0) -> 0.00 | I26: 17 | J26: PLI | N26: =IF(M2=2,VLOOKUP(D2,Ded_2,8,0),0) -> 0.00
B27: 8 | C27: ULIP/Annual Plan | G27: =IF(M2=2,VLOOKUP(D2,Ded_2,10,0),0) -> 0.00 | I27: 18 | J27: Other deposits under section 80C | N27: =IF(M2=2,VLOOKUP(D2,Ded_2,20,0),0) -> 0.00
B28: 9 | C28: Home Loan Premium | G28: =IF(M2=2,VLOOKUP(D2,Ded_2,6,0),0) -> 0.00 | I28: 19 | J28: Total from 1 to 18 | N28: =IF(M2=2,SUM(G20:H29,N20:N27),N20) -> 0.00
B29: 10 | C29: Deposit in Sukanya Scheme | G29: =IF(M2=2,VLOOKUP(D2,Ded_2,15,0),0) -> 0.00
B30: Maximum deduction amount up to Rs 150000 | O30: =IF($N$28<150001,ROUND($N$28,0),150000) -> 0
B31: (B) | C31: Deduct Section 80CCD(2) amount of pension contribution by the employer (10% of maximum salary) | O31: =IF(M2=1,N20,0) -> 0
B32: (C) | C32: Deduct additional contribution in Section 80CCD (1B) New Pension Scheme (maximum Rs 50000) | O32: =VLOOKUP(D2,Ded_3,4,0) -> 0
B33: Total of 11 (A+B+C) | O33: =SUM(O30:O32) -> 0
A34: 12 | B34: Other Deductions
B35: 1 | C35: Section 80 D, Medical Insurance (Rs 25000 for self, spouse and children and parents, Rs 50000 for senior citizens) | O35: =IF(M2=2,VLOOKUP(D2,Ded_3,5,0),0) -> 0
B36: 2 | C36: Section 80DD Medical treatment of disabled dependents (max Rs 75,000 and 80% or more disability Rs 125,000) | O36: =IF(M2=2,VLOOKUP(D2,Ded_3,6,0),0) -> 0
B37: 3 | C37: Section 80 DDB Deduction for treatment of specified diseases (maximum Rs 40,000, Rs 100,000 for senior citizens) | O37: =IF(M2=2,VLOOKUP(D2,Ded_3,7,0),0) -> 0
B38: 4 | C38: Section 80 E Interest on loan taken for higher education | O38: =IF(M2=2,VLOOKUP(D2,Ded_3,8,0),0) -> 0
B39: 5 | C39: Section 80 G Donations to charitable institutions etc. (100% in category A and 50% in category B) | O39: =IF(M2=2,VLOOKUP(D2,Ded_3,9,0),0) -> 0
B40: 6 | C40: Section 80 U In case of permanent physical disability (maximum Rs. 75,000 and Rs. 125,000 as per Act 1995) | O40: =IF(M2=2,VLOOKUP(D2,Ded_3,10,0),0) -> 0
B41: 7 | C41: Section 80 TTA Maximum exemption on interest on savings account Rs. 10,000 U/S 194(IA) | O41: =IF('Master Data'!P6="",0,IF(M2=2,IF(VLOOKUP(D2,Master_Data,16,0)=10000,10000,VLOOKUP(D2,Master_Data,16,0)-10000),0)) -> 0
B42: 8 | C42: Section 80 TTB Maximum exemption on all types of interest to senior citizens – Rs. 50,000 U/S 194(A)
B43: 9 | C43: Section 80 GGA Donations made for approved scientific, social, rural development etc. | O43: =IF(M2=2,VLOOKUP(D2,Ded_3,11,0),0) -> 0
B44: 10 | C44: US 80 EE (Home Loan interest for first time house buyer) | O44: =IF(M2=2,VLOOKUP(D2,Ded_3,12,0),0) -> 0
B45: 11 | C45: US 80EEA (Home Loan interest for Affordable home buyer .Loan sanction from 01-04-2019) | O45: =IF(M2=2,VLOOKUP(D2,Ded_3,13,0),0) -> 0
B46: Total 12 (1 to 11) | O46: =IF(M2=2,SUM(O35:O45),0) -> 0
A47: 13 | B47: Total Deductions (11+12) | O47: =IF(M2=2,SUM(O33,O46),O33) -> 0
A48: 14 | B48: Taxable Income (10-13) | O48: =SUM(O18-O47) -> ₹989,040.00
A49: 15 | B49: Rounding off the amount of total income (in multiples of ten) Section 288 A | O49: =ROUND($O$48,-1) -> ₹989,040.00
A50: 16 | B50: Calculation of Income Tax
B51: Old Tax Regime Slabs | L51: New Tax Regime Slabs (for all) | O51: Tax Calculation | X51: difference
B52: Individual tax payer | F52: Sr. Citizen (60 to 80 years) | I52: 80 years of age or older | L52: up to 300000 | N52: NIL | O52: 0 | R52: net taxable income | T52: =O49 -> 989040.00 | V52: 700000 | X52: =IF($T$52>$V$52,T52-V52,0) -> 289040
B53: up to 250000 | E53: NIL | F53: up to 300000 | H53: NIL | I53: up to 300000 | K53: NIL | L53: 300001 to 700000 | N53: 5% | O53: =IF(M2=1,ROUND(IF(O49<300001,0,IF(O49>700000,20000,((O49-300001)*0.05))),0),0) -> ₹20,000.00 | R53: normal tax | T53: =O58 -> 48904.00 | V53: 0 | X53: =IF($T$52>$V$52,T53-V53,0) -> 48904
B54: 250001 to 500000 | E54: 5% | F54: 300001 to 50000 | H54: 5% | I54: 300001 to 50000 | K54: NIL | L54: 700001 to 1000000 | N54: 10% | O54: =IF(M2=2,ROUND(IF(O49<250001,0,IF(O49>500000,12500,((O49-250000)*0.05))),0),ROUND(IF(O49<700001,0,IF(O49>1000000,30000,((O49-700000)*0.1))),0)) -> ₹28,904.00 | R54: cess | T54: =O61 -> 1956.00 | W54: marginal relief | X54: =IF(X53>X52,X53-X52,0) -> 0
B55: 500001 to 1000000 | E55: 20% | F55: 500001 to 1000000 | H55: 20% | I55: 500001 to 1000000 | K55: 20% | L55: 1000001 to 1200000 | N55: 15% | O55: =IF(M2=2,ROUND(IF(O49<500001,0,IF(O49>1000000,100000,((O49-500000)*0.2))),0),ROUND(IF(O49<1000001,0,IF(O49>1200000,30000,((O49-1000000)*0.15))),0)) -> 0 | R55: surcharge
B56: More than 1000000 | E56: 30% | F56: More than 1000000 | H56: 30% | I56: More than 1000000 | K56: 30% | L56: 1200001 to 1500000 | N56: 20% | O56: =IF(M2=2,ROUND(IF(O49<1000001,0,((O49-1000000)*0.3)),0),ROUND(IF(O49<1200001,0,IF(O49>1500000,60000,((O49-1200000)*0.2))),0)) -> 0 | R56: toatal tax | T56: =SUM(T52:T55) -> 1039900.00 | W56: net tax | X56: =T53-X54 -> 48904.00
L57: More than 1500000 | N57: 30% | O57: =IF(M2=1,ROUND(IF(O49<1500001,0,(O49-1500000)*0.3),0),0) -> 0
B58: 1 | C58: Total Income Tax | N58: 115BAC(1) | O58: =SUM(O52:O57) -> ₹48,904.00
B59: 2 | C59: Old Tax Regime - Exemption Section 87(A) (Exemption of income tax on taxable income of Rs. 2.50 lakh to Rs. 5 lakh up to a maximum of Rs. 12500) New Tax Regime - Exemption Section 87(A) (Exemption of income tax on taxable income of Rs. 3 lakh to Rs. 7 lakh up to maximum of Rs. 25000) & Marginal relief benefit under section 115BAC(1) | N59: =IF(M2=1,IF(X54="","",X54),0) -> 0.00 | O59: =IF(M2=2,IF(O49>500000,0,IF(O58<12501,O58,12500)),IF(N59>0,N59,IF(O49>700000,0,IF(O58<25001,O58,25000)))) -> 0
B60: 3 | C60: Balance Income Tax (1-2) | O60: =O58-O59 -> ₹48,904.00
B61: 4 | C61: Education cess 2% and surcharge for higher education 2% (total 4%) | O61: =ROUND(O60*0.04,0) -> ₹1,956.00
B62: Total Income Tax (3+4) | O62: =SUM(O60:O61) -> ₹50,860.00
A63: 17 | B63: Reduce :- Relief under section 89 | O63: 0
A64: 18 | B64: Total Income Tax Balance | O64: =O62-O63 -> ₹50,860.00
A65: 19 | B65: Income tax deduction details (TDS And apart from monthly salary)
B66: 2024-03-01 | C66: 2024-04-01 | D66: 2024-05-01 | E66: 2024-06-01 | F66: 2024-07-01 | G66: 2024-08-01 | H66: 2024-09-01 | I66: 2024-10-01 | J66: 2024-11-01 | K66: 2024-12-01 | L66: 2025-01-01 | M66: 2025-02-01 | N66: TDS and Ot. | O66: Total tax
B67: =VLOOKUP(D2,Ded_1,10,0) -> 0 | C67: =VLOOKUP(D2,Ded_1,11,0) -> 0 | D67: =VLOOKUP(D2,Ded_1,12,0) -> 0 | E67: =VLOOKUP(D2,Ded_1,13,0) -> 0 | F67: =VLOOKUP(D2,Ded_1,14,0) -> 0 | G67: =VLOOKUP(D2,Ded_1,15,0) -> 0 | H67: =VLOOKUP(D2,Ded_1,16,0) -> 0 | I67: =VLOOKUP(D2,Ded_1,17,0) -> 0 | J67: =VLOOKUP(D2,Ded_1,18,0) -> 0 | K67: =VLOOKUP(D2,Ded_1,19,0) -> 0 | L67: =VLOOKUP(D2,Ded_1,20,0) -> 0 | M67: =VLOOKUP(D2,Ded_1,21,0) -> 0 | N67: =VLOOKUP(D2,Ded_3,14,0) -> 0 | O67: =SUM(B67:N67) -> 0
A68: =IF(O64>O67,"Income Tax Payable",IF(O64<O67,"Income Tax Refundable","Income Tax No Need")) -> Income Tax Payable | O68: =O64-O67 -> ₹50,860.00
A70: Signature Of Employee | F70: Prepared By Ashwini Kumar : 9166023711 www.ashwinisharma.com | N70: Signature Of DDO
